BodyName,ServiceAreaCategorisation,ServiceDivisionCategorisation,ExpensesType,Date,TransactionNumber,Amount,CapitalorRevenue,SupplierName
Peterborough City Council,Support Services,Support Services,Premises,01/06/2011,380948,"2,212.09",REVENUE,Adcock Refrig/air Conditioning Ltd
Peterborough City Council,Capital,Capital,Capital Pending Update to BS,01/06/2011,382800,"5,868.00",CAPITAL,Haskoning UK Ltd
Peterborough City Council,Court Services,Coroner's Court Service,Supplies and Services,01/06/2011,383980,"9,930.60",REVENUE,P'Boro & Stamford Hosp NHS F/dation Trust
Peterborough City Council,Support Services,Support Services,Supplies and Services,01/06/2011,384758,609.6,REVENUE,Serco Ltd
Peterborough City Council,"Cultural, Environmental and Planning Services",Community Development,Supplies and Services,01/06/2011,384853,665.91,REVENUE,Triple SSS Limited
Peterborough City Council,Children's & Education Services - Children's Social Care,More than one Service Division,Employees,01/06/2011,385161,"1,322.40",REVENUE,Care Recruitment UK Ltd
Peterborough City Council,Capital,Capital,Capital Pending Update to BS,01/06/2011,385250,"18,623.75",CAPITAL,Quadrant Security Group Ltd
Peterborough City Council,Capital,Capital,Capital Pending Update to BS,01/06/2011,385251,"2,960.92",CAPITAL,Quadrant Security Group Ltd
Peterborough City Council,Children's & Education Services - Children's Social Care,Children Looked After,Supplies and Services - Transfer Payments,01/06/2011,385252,"5,978.66",REVENUE,Alliance Foster Care
Peterborough City Council,Children's & Education Services - Children's Social Care,Support Services & Management Costs,More than one Expenses Type,01/06/2011,385256,"6,393.60",REVENUE,Compass Career Opportunities Ltd
Peterborough City Council,Children's & Education Services - Education,Secondary,Premises,01/06/2011,385514,"2,500.40",REVENUE,Cambridgeshire County Council
Peterborough City Council,Deficit/(Surplus) on Trading Undertakings,Trading Account Surpluses & Deficits,Supplies and Services,01/06/2011,385560,604.8,REVENUE,Perkins Engines Co Ltd
Peterborough City Council,"Cultural, Environmental and Planning Services",Community Development,Employees,01/06/2011,385563,780.3,REVENUE,Anne Corder Recruitment
Peterborough City Council,Children's & Education Services - Children's Social Care,Other Children's & Families Services,Employees,01/06/2011,385567,"1,776.00",REVENUE,Medicare First
Peterborough City Council,"Highways, Roads & Transport Services",Street Lighting,Supplies and Services,01/06/2011,385576,"10,047.36",REVENUE,Volker Highways MEWS Ltd
Peterborough City Council,"Highways, Roads & Transport Services",Street Lighting,Supplies and Services,01/06/2011,385584,"23,472.00",REVENUE,Volker Highways MEWS Ltd
Peterborough City Council,"Highways, Roads & Transport Services",Street Lighting,Supplies and Services,01/06/2011,385586,"65,165.04",REVENUE,Volker Highways MEWS Ltd
Peterborough City Council,Children's & Education Services - Education,All Schools - apportion across sectors,Supplies and Services,01/06/2011,385595,973,REVENUE,Hertfordshire County Council
Peterborough City Council,Children's & Education Services - Children's Social Care,Support Services & Management Costs,Supplies and Services,01/06/2011,385683,"3,150.00",REVENUE,Redacted Personal Data
Peterborough City Council,Non Distributed Cost,Pensions,Third Party Payments,01/06/2011,385761,"397,518.11",REVENUE,Cambridgeshire County Council
Peterborough City Council,"Cultural, Environmental and Planning Services",Planning Policy,Supplies and Services,01/06/2011,386205,573.3,REVENUE,Johnston Press Midlands Division
Peterborough City Council,Housing Services,Housing Benefits,Employees,01/06/2011,386219,842.4,REVENUE,The Synergy Group
Peterborough City Council,Children's & Education Services - Children's Social Care,Children Looked After,Supplies and Services - Transfer Payments,01/06/2011,386254,"7,000.00",REVENUE,Chelfham Mill School Ltd
Peterborough City Council,Corporate & Democratic Core,Corporate Management,Supplies and Services,01/06/2011,386260,594,REVENUE,Local Government Association
Peterborough City Council,Corporate & Democratic Core,Democratic Representation & Managemetn,Supplies and Services,01/06/2011,386261,594,REVENUE,Local Government Association
Peterborough City Council,Corporate & Democratic Core,Democratic Representation & Managemetn,Supplies and Services,01/06/2011,386263,594,REVENUE,Local Government Association
Peterborough City Council,Corporate & Democratic Core,Democratic Representation & Managemetn,Supplies and Services,01/06/2011,386264,594,REVENUE,Local Government Association
Peterborough City Council,Children's & Education Services - Children's Social Care,Family Support Services,Employees,01/06/2011,386265,"1,188.00",REVENUE,Cambridgeshire County Council
Peterborough City Council,Children's & Education Services - Children's Social Care,Children Looked After,Supplies and Services,01/06/2011,386267,"1,291.04",REVENUE,XMA Limited
Peterborough City Council,Housing Services,Private Sector Housing Renewal,Supplies and Services,01/06/2011,386284,510,REVENUE,Lawrence Plumbing & Heating
Peterborough City Council,Capital,Capital,Capital Pending Update to BS,01/06/2011,386286,"5,400.00",CAPITAL,G V A Grimley
Peterborough City Council,Children's & Education Services - Children's Social Care,Other Children's & Families Services,Employees,01/06/2011,386288,"1,404.00",REVENUE,Evergood Associates
Peterborough City Council,Children's & Education Services - Education,Non-School Funding,Supplies and Services,01/06/2011,386473,660,REVENUE,Redacted Personal Data
Peterborough City Council,Children's & Education Services - Children's Social Care,Family Support Services,Supplies and Services,01/06/2011,386505,942.74,REVENUE,Sahara Community Care Services
Peterborough City Council,Children's & Education Services - Education,All Schools - apportion across sectors,Supplies and Services,01/06/2011,386511,"1,888.80",REVENUE,Tribal Resourcing Ltd
Peterborough City Council,Children's & Education Services - Education,All Schools - apportion across sectors,Supplies and Services,01/06/2011,386514,"6,300.00",REVENUE,Tribal Resourcing Ltd
Peterborough City Council,Children's & Education Services - Education,Non-School Funding,Supplies and Services,01/06/2011,386515,"41,317.37",REVENUE,Capita Absence Management Services Ltd
Peterborough City Council,"Cultural, Environmental and Planning Services",Economic Development,Employees,01/06/2011,386518,"1,332.00",REVENUE,Hays Specialist Recruitment Ltd
Peterborough City Council,"Cultural, Environmental and Planning Services",Economic Development,Employees,01/06/2011,386519,"1,332.00",REVENUE,Hays Specialist Recruitment Ltd
Peterborough City Council,"Cultural, Environmental and Planning Services",Economic Development,Employees,01/06/2011,386521,"1,332.00",REVENUE,Hays Specialist Recruitment Ltd
Peterborough City Council,Children's & Education Services - Education,Non-School Funding,Supplies and Services,01/06/2011,386528,"72,645.81",REVENUE,Capita Absence Management Services Ltd
Peterborough City Council,Children's & Education Services - Children's Social Care,Other Children's & Families Services,Employees,01/06/2011,386574,963.89,REVENUE,Blue Group International Ltd
Peterborough City Council,"Cultural, Environmental and Planning Services",Regulatory services,Supplies and Services,01/06/2011,386602,"2,463.20",REVENUE,"Pengelly M O A & G P Mizen,"
Peterborough City Council,Capital,Capital,Capital Pending Update to BS,01/06/2011,386622,"7,560.00",CAPITAL,Westcotec
Peterborough City Council,Corporate & Democratic Core,Democratic Representation & Managemetn,Supplies and Services,01/06/2011,386624,594,REVENUE,Local Government Association
Peterborough City Council,Children's & Education Services - Children's Social Care,Family Support Services,Supplies and Services,01/06/2011,386630,"1,750.00",REVENUE,P C V S
Peterborough City Council,Children's & Education Services - Education,All Schools - apportion across sectors,Supplies and Services,01/06/2011,386814,"1,071.90",REVENUE,ES4S Ltd
Peterborough City Council,Children's & Education Services - Children's Social Care,Children Looked After,Supplies and Services - Transfer Payments,01/06/2011,386828,"8,022.30",REVENUE,I S P
Peterborough City Council,Children's & Education Services - Children's Social Care,Children Looked After,Supplies and Services - Transfer Payments,01/06/2011,386839,"14,956.50",REVENUE,Cornerways Childrens Services Ltd
Peterborough City Council,Children's & Education Services - Children's Social Care,Children Looked After,Supplies and Services - Transfer Payments,01/06/2011,386899,"3,011.43",REVENUE,Nene Valley Fostering Agency
Peterborough City Council,Children's & Education Services - Children's Social Care,Children Looked After,Supplies and Services - Transfer Payments,01/06/2011,386900,"2,838.89",REVENUE,Nene Valley Fostering Agency
Peterborough City Council,Children's & Education Services - Children's Social Care,Children Looked After,Supplies and Services - Transfer Payments,01/06/2011,386902,"2,878.57",REVENUE,Nene Valley Fostering Agency
Peterborough City Council,Children's & Education Services - Children's Social Care,Children Looked After,Supplies and Services - Transfer Payments,01/06/2011,386903,"2,878.57",REVENUE,Nene Valley Fostering Agency
Peterborough City Council,Children's & Education Services - Children's Social Care,Children Looked After,Supplies and Services - Transfer Payments,01/06/2011,386904,"2,878.57",REVENUE,Nene Valley Fostering Agency
Peterborough City Council,Children's & Education Services - Children's Social Care,Children Looked After,Supplies and Services - Transfer Payments,01/06/2011,386905,"3,011.43",REVENUE,Nene Valley Fostering Agency
Peterborough City Council,Children's & Education Services - Children's Social Care,Children Looked After,Supplies and Services - Transfer Payments,01/06/2011,386906,"2,878.57",REVENUE,Nene Valley Fostering Agency
Peterborough City Council,Children's & Education Services - Children's Social Care,Children Looked After,Supplies and Services - Transfer Payments,01/06/2011,386909,"3,007.66",REVENUE,Nene Valley Fostering Agency
Peterborough City Council,Children's & Education Services - Children's Social Care,Children Looked After,Supplies and Services - Transfer Payments,01/06/2011,386910,"3,239.94",REVENUE,Nene Valley Fostering Agency
Peterborough City Council,Children's & Education Services - Children's Social Care,Children Looked After,Supplies and Services - Transfer Payments,01/06/2011,386911,"3,112.49",REVENUE,Nene Valley Fostering Agency
Peterborough City Council,Children's & Education Services - Children's Social Care,Children Looked After,Supplies and Services - Transfer Payments,01/06/2011,386912,"2,886.54",REVENUE,Nene Valley Fostering Agency
Peterborough City Council,Deficit/(Surplus) on Trading Undertakings,Trading Account Surpluses & Deficits,Premises,01/06/2011,386943,537.76,REVENUE,Princebuild Limited
Peterborough City Council,Deficit/(Surplus) on Trading Undertakings,Trading Account Surpluses & Deficits,Premises,01/06/2011,386944,"1,033.77",REVENUE,Princebuild Limited
Peterborough City Council,Deficit/(Surplus) on Trading Undertakings,Trading Account Surpluses & Deficits,Premises,01/06/2011,386947,743.04,REVENUE,Princebuild Limited
Peterborough City Council,Support Services,Support Services,Supplies and Services,01/06/2011,386949,612.99,REVENUE,Princebuild Limited
Peterborough City Council,Support Services,Support Services,Premises,01/06/2011,386952,"1,397.20",REVENUE,Princebuild Limited
Peterborough City Council,"Cultural, Environmental and Planning Services",Recreation & Sport,Premises,01/06/2011,386953,"3,169.20",REVENUE,Princebuild Limited
Peterborough City Council,Deficit/(Surplus) on Trading Undertakings,Trading Account Surpluses & Deficits,Supplies and Services,01/06/2011,386954,674.84,REVENUE,Princebuild Limited
Peterborough City Council,Capital,Capital,Capital Pending Update to BS,01/06/2011,386958,"8,093.76",CAPITAL,Princebuild Limited
Peterborough City Council,Capital,Capital,Capital Pending Update to BS,01/06/2011,386959,537.48,CAPITAL,Princebuild Limited
Peterborough City Council,Deficit/(Surplus) on Trading Undertakings,Trading Account Surpluses & Deficits,Supplies and Services,01/06/2011,386960,765.53,REVENUE,Princebuild Limited
Peterborough City Council,Deficit/(Surplus) on Trading Undertakings,Trading Account Surpluses & Deficits,Supplies and Services,01/06/2011,386961,"1,090.15",REVENUE,Princebuild Limited
Peterborough City Council,Capital,Capital,Capital Pending Update to BS,01/06/2011,386962,882.91,CAPITAL,Princebuild Limited
Peterborough City Council,Deficit/(Surplus) on Trading Undertakings,Trading Account Surpluses & Deficits,Premises,01/06/2011,386964,"1,833.60",REVENUE,Princebuild Limited
Peterborough City Council,Children's & Education Services - Children's Social Care,Children Looked After,Supplies and Services - Transfer Payments,01/06/2011,387152,"2,945.49",REVENUE,Nene Valley Fostering Agency
Peterborough City Council,More than one Service Area Category,More than one Service Division,More than one Expenses Type,01/06/2011,387227,"1,234.00","Mixture of Capital, Revenue and/or Balance Sheet",Ian Clarke Electrical
Peterborough City Council,More than one Service Area Category,More than one Service Division,More than one Expenses Type,01/06/2011,387231,"2,064.00","Mixture of Capital, Revenue and/or Balance Sheet",Allworks Home Improvements Ltd
Peterborough City Council,Housing Services,Housing Benefits,Supplies and Services,01/06/2011,387244,"4,368.00",REVENUE,CIPFA
Peterborough City Council,More than one Service Area Category,More than one Service Division,Balance Sheet,01/06/2011,387280,"23,727.00",Balance Sheet,Barnack Parish Council
Peterborough City Council,"Cultural, Environmental and Planning Services",Waste Collection,Premises,01/06/2011,387488,"3,173.00",REVENUE,Environment Agency
Peterborough City Council,"Cultural, Environmental and Planning Services",Waste Collection,Premises,01/06/2011,387489,"3,819.00",REVENUE,Environment Agency
Peterborough City Council,"Cultural, Environmental and Planning Services",Waste Collection,Premises,01/06/2011,387490,"1,840.00",REVENUE,Environment Agency
Peterborough City Council,Support Services,Support Services,Supplies and Services,01/06/2011,387515,750,REVENUE,Redacted Personal Data
Peterborough City Council,Children's & Education Services - Children's Social Care,Management and support services,Premises,01/06/2011,387562,"10,727.80",REVENUE,Cutting Edge Flooring
Peterborough City Council,"Cultural, Environmental and Planning Services",Economic Development,Employees,01/06/2011,387622,910.8,REVENUE,Hays Specialist Recruitment Ltd
Peterborough City Council,Children's & Education Services - Education,Non-School Funding,Premises,01/06/2011,387690,534.29,REVENUE,British Sugar Plc
Peterborough City Council,"Cultural, Environmental and Planning Services",Economic Development,Employees,01/06/2011,387723,885.6,REVENUE,Hays Specialist Recruitment Ltd
Peterborough City Council,Support Services,Support Services,Employees,01/06/2011,387733,783.71,REVENUE,Sacco Mann Ltd
Peterborough City Council,Children's & Education Services - Education,Non-School Funding,Employees,01/06/2011,387753,573.6,REVENUE,Mana Resourcing Ltd
Peterborough City Council,"Highways, Roads & Transport Services","Transport planning, policy and strategy",Employees,01/06/2011,387765,"1,791.00",REVENUE,Randstad CPE
Peterborough City Council,"Cultural, Environmental and Planning Services",Economic Development,Employees,01/06/2011,387768,864.95,REVENUE,Randstad CPE
Peterborough City Council,Children's & Education Services - Education,Secondary,Employees,01/06/2011,387772,"1,256.40",REVENUE,Mana Resourcing Ltd
Peterborough City Council,"Cultural, Environmental and Planning Services",Economic Development,Grants and Other Income,01/06/2011,388170,"114,400.00",REVENUE,Dept for Work & Pensions
Peterborough City Council,"Highways, Roads & Transport Services","Transport planning, policy and strategy",Employees,01/06/2011,388198,"1,355.40",REVENUE,Randstad CPE
Peterborough City Council,"Cultural, Environmental and Planning Services",Economic Development,Supplies and Services,01/06/2011,388200,620.83,REVENUE,Performing Rights Society Ltd
Peterborough City Council,Support Services,Support Services,Supplies and Services,01/06/2011,388208,759.38,REVENUE,AXA PPP Healthcare OHS Ltd
Peterborough City Council,Support Services,Support Services,Supplies and Services,01/06/2011,388249,666,REVENUE,Key People Ltd
Peterborough City Council,Capital,Capital,Capital Pending Update to BS,01/06/2011,388292,"76,380.00",CAPITAL,Cawarden Co Ltd
Peterborough City Council,Capital,Capital,Capital Pending Update to BS,01/06/2011,388298,"2,458.80",CAPITAL,UK Power Networks (operations) Ltd
Peterborough City Council,Capital,Capital,Capital Pending Update to BS,01/06/2011,388423,"46,629.32",CAPITAL,Langwith Builders Ltd
Peterborough City Council,"Highways, Roads & Transport Services",Street Lighting,Premises,01/06/2011,388437,"2,196.13",REVENUE,Southern Electric
Peterborough City Council,"Highways, Roads & Transport Services",Street Lighting,Premises,01/06/2011,388440,"2,064.45",REVENUE,Southern Electric
Peterborough City Council,Children's & Education Services - Children's Social Care,Other Children's & Families Services,Supplies and Services,01/06/2011,388609,"1,346.76",REVENUE,Venn Group Ltd
Peterborough City Council,"Highways, Roads & Transport Services",Parking Services,Sales,01/06/2011,388635,640.77,REVENUE,Opportunity Peterborough
Peterborough City Council,Support Services,Support Services,Premises,01/06/2011,388641,645.17,REVENUE,Anglian Water
Peterborough City Council,Deficit/(Surplus) on Trading Undertakings,Trading Account Surpluses & Deficits,Supplies and Services,01/06/2011,388645,"5,395.20",REVENUE,Barron Clark Castings Ltd
Peterborough City Council,Deficit/(Surplus) on Trading Undertakings,Trading Account Surpluses & Deficits,Supplies and Services,01/06/2011,388646,540.6,REVENUE,Barron Clark Castings Ltd
Peterborough City Council,Deficit/(Surplus) on Trading Undertakings,Trading Account Surpluses & Deficits,Supplies and Services,01/06/2011,388671,"9,483.54",REVENUE,Premier Decorators UK Ltd
Peterborough City Council,Capital,Capital,Capital Pending Update to BS,01/06/2011,388710,"80,275.20",CAPITAL,MARS (Construction) Ltd
Peterborough City Council,Capital,Capital,Capital Pending Update to BS,01/06/2011,388711,"147,616.80",CAPITAL,MARS (Construction) Ltd
Peterborough City Council,Children's & Education Services - Education,Secondary,Premises,01/06/2011,388714,629.04,REVENUE,Anglian Water
Peterborough City Council,Children's & Education Services - Education,Secondary,Premises,01/06/2011,388715,"7,090.83",REVENUE,Anglian Water
Peterborough City Council,Children's & Education Services - Education,Secondary,Premises,01/06/2011,388716,"1,266.69",REVENUE,Anglian Water
Peterborough City Council,Children's & Education Services - Education,Secondary,Premises,01/06/2011,388717,"1,174.98",REVENUE,Anglian Water
Peterborough City Council,Children's & Education Services - Education,Secondary,Premises,01/06/2011,388718,945.73,REVENUE,Southern Electric
Peterborough City Council,Children's & Education Services - Children's Social Care,Support Services & Management Costs,Employees,01/06/2011,388719,"1,776.00",REVENUE,Blue Group International Ltd
Peterborough City Council,Children's & Education Services - Education,Primary,Premises,01/06/2011,388720,"4,250.06",REVENUE,Southern Electric
Peterborough City Council,Children's & Education Services - Education,Secondary,Premises,01/06/2011,388723,"2,111.94",REVENUE,Southern Electric
Peterborough City Council,More than one Service Area Category,More than one Service Division,Equity,01/06/2011,388752,"11,444.15","Mixture of Capital, Revenue and/or Balance Sheet",Legal Services Commission
Peterborough City Council,More than one Service Area Category,More than one Service Division,More than one Expenses Type,01/06/2011,388759,"1,185.00","Mixture of Capital, Revenue and/or Balance Sheet",Obam Domestic Lift Services Ltd
Peterborough City Council,"Highways, Roads & Transport Services",Street Lighting,Premises,01/06/2011,388838,"1,779.54",REVENUE,E.ON Energy
Peterborough City Council,"Highways, Roads & Transport Services",Public Transport,Supplies and Services,01/06/2011,388841,"8,800.00",REVENUE,Nottinghamshire County Council
Peterborough City Council,"Highways, Roads & Transport Services",Public Transport,Supplies and Services,01/06/2011,388846,"6,936.00",REVENUE,Veolia Transport UK Ltd
Peterborough City Council,"Highways, Roads & Transport Services",Street Lighting,Premises,01/06/2011,388852,"1,378.29",REVENUE,Southern Electric
Peterborough City Council,Deficit/(Surplus) on Trading Undertakings,Trading Account Surpluses & Deficits,Premises,01/06/2011,388928,829.15,REVENUE,T Clarke East Limited
Peterborough City Council,Deficit/(Surplus) on Trading Undertakings,Trading Account Surpluses & Deficits,Supplies and Services,01/06/2011,388930,646.15,REVENUE,T Clarke East Limited
Peterborough City Council,Deficit/(Surplus) on Trading Undertakings,Trading Account Surpluses & Deficits,Premises,01/06/2011,388931,676.27,REVENUE,T Clarke East Limited
Peterborough City Council,Deficit/(Surplus) on Trading Undertakings,Trading Account Surpluses & Deficits,Premises,01/06/2011,388932,595.68,REVENUE,T Clarke East Limited
Peterborough City Council,"Cultural, Environmental and Planning Services",Agriculture,Premises,01/06/2011,388935,"6,253.24",REVENUE,T Clarke East Limited
Peterborough City Council,"Cultural, Environmental and Planning Services",Agriculture,Premises,01/06/2011,388936,"4,007.54",REVENUE,T Clarke East Limited
Peterborough City Council,"Cultural, Environmental and Planning Services",Economic Development,Third Party Payments,01/06/2011,388969,"5,567.50",REVENUE,Gladstone Connect Ltd
Peterborough City Council,Housing Services,Homelessness,Supplies and Services,01/06/2011,388996,700,REVENUE,Bee Lettings
Peterborough City Council,Support Services,Support Services,Premises,03/06/2011,377370,"6,090.20",REVENUE,Baker Perkins Ltd
Peterborough City Council,Deficit/(Surplus) on Trading Undertakings,Trading Account Surpluses & Deficits,Supplies and Services,03/06/2011,384441,"1,209.60",REVENUE,Perkins Engines Co Ltd
Peterborough City Council,Deficit/(Surplus) on Trading Undertakings,Trading Account Surpluses & Deficits,Supplies and Services,03/06/2011,384805,"1,420.22",REVENUE,Perkins Engines Co Ltd
Peterborough City Council,Housing Services,Housing Benefits,Employees,03/06/2011,384818,828,REVENUE,The Synergy Group
Peterborough City Council,Deficit/(Surplus) on Trading Undertakings,Trading Account Surpluses & Deficits,Supplies and Services,03/06/2011,385269,"1,449.60",REVENUE,Brammer
Peterborough City Council,Support Services,Support Services,Premises,03/06/2011,385674,"6,045.95",REVENUE,Baker Perkins Ltd
Peterborough City Council,Deficit/(Surplus) on Trading Undertakings,Trading Account Surpluses & Deficits,Supplies and Services,03/06/2011,387680,"12,771.60",REVENUE,James Coles & Sons Ltd
Peterborough City Council,Support Services,Support Services,Supplies and Services,03/06/2011,388234,"8,160.00",REVENUE,Sweet & Maxwell Limited
Peterborough City Council,Support Services,Support Services,Supplies and Services,03/06/2011,388235,"2,475.60",REVENUE,Sweet & Maxwell Limited
Peterborough City Council,"Cultural, Environmental and Planning Services",Waste Collection,Supplies and Services,03/06/2011,388294,"38,062.31",REVENUE,Organic Recycling Ltd
Peterborough City Council,Children's & Education Services - Children's Social Care,Children Looked After,Supplies and Services - Transfer Payments,03/06/2011,389053,"3,454.33",REVENUE,Synergy Fostering Ltd
Peterborough City Council,"Cultural, Environmental and Planning Services",Recreation & Sport,Supplies and Services,03/06/2011,389056,720,REVENUE,RMIS Ltd
Peterborough City Council,Children's & Education Services - Education,Non-School Funding,Employees,03/06/2011,389086,600,REVENUE,CHYPS
Peterborough City Council,Support Services,Support Services,Supplies and Services,03/06/2011,389128,972,REVENUE,Vivacity Culture and Leisure
Peterborough City Council,More than one Service Area Category,More than one Service Division,More than one Expenses Type,03/06/2011,389154,"1,082.05",REVENUE,Peterborough City Council
Peterborough City Council,More than one Service Area Category,More than one Service Division,Balance Sheet,03/06/2011,389156,"834,000.08",Balance Sheet,Teachers Pensions
Peterborough City Council,Children's & Education Services - Children's Social Care,Children Looked After,Supplies and Services,03/06/2011,389158,"2,404.27",REVENUE,Ofsted
Peterborough City Council,More than one Service Area Category,More than one Service Division,Balance Sheet,03/06/2011,389166,"8,269.91",Balance Sheet,The Prudential Assurance Company Ltd
Peterborough City Council,Children's & Education Services - Education,Non-School Funding,Employees,03/06/2011,389171,"23,555.10",REVENUE,Teachers Pensions
Peterborough City Council,More than one Service Area Category,More than one Service Division,Balance Sheet,03/06/2011,389176,"6,429.99",Balance Sheet,Teachers Pensions
Peterborough City Council,More than one Service Area Category,More than one Service Division,Balance Sheet,03/06/2011,389179,"4,551.52",Balance Sheet,The Prudential Assurance Company Ltd
Peterborough City Council,"Cultural, Environmental and Planning Services",Economic Development,Employees,03/06/2011,389189,"1,190.00",REVENUE,Young Lives
Peterborough City Council,Children's & Education Services - Children's Social Care,More than one Service Division,More than one Expenses Type,03/06/2011,389223,"1,087.11",REVENUE,Children & Families Looked After Children
Peterborough City Council,Children's & Education Services - Children's Social Care,More than one Service Division,Supplies and Services,03/06/2011,389226,"1,335.87",REVENUE,Children & Families Looked After Children
Peterborough City Council,Housing Services,Housing Benefits,Employees,06/06/2011,376509,"1,124.56",REVENUE,The Synergy Group
Peterborough City Council,Housing Services,Housing Benefits,Employees,06/06/2011,376516,"1,243.20",REVENUE,The Synergy Group
Peterborough City Council,Housing Services,Housing Benefits,Employees,06/06/2011,376518,"1,251.60",REVENUE,The Synergy Group
Peterborough City Council,Housing Services,Housing Benefits,Employees,06/06/2011,377498,"1,153.96",REVENUE,The Synergy Group
Peterborough City Council,Housing Services,Housing Benefits,Employees,06/06/2011,377500,904.06,REVENUE,The Synergy Group
Peterborough City Council,Housing Services,Housing Benefits,Employees,06/06/2011,377502,"1,260.00",REVENUE,The Synergy Group
Peterborough City Council,Housing Services,Housing Benefits,Employees,06/06/2011,377503,"1,285.20",REVENUE,The Synergy Group
Peterborough City Council,Housing Services,Housing Benefits,Employees,06/06/2011,378721,"1,176.00",REVENUE,The Synergy Group
Peterborough City Council,Capital,Capital,Capital Pending Update to BS,06/06/2011,381086,"52,650.96",CAPITAL,Ringway Infrastructure Services
Peterborough City Council,Housing Services,Housing Benefits,Employees,06/06/2011,381115,"1,176.00",REVENUE,The Synergy Group
Peterborough City Council,"Cultural, Environmental and Planning Services",Environmental Initiatives,Supplies and Services,06/06/2011,381217,"3,900.00",REVENUE,Beacon Planning Ltd
Peterborough City Council,Housing Services,Housing Benefits,Employees,06/06/2011,381722,"1,318.80",REVENUE,The Synergy Group
Peterborough City Council,Housing Services,Housing Benefits,Employees,06/06/2011,381735,"1,139.26",REVENUE,The Synergy Group
Peterborough City Council,Children's & Education Services - Children's Social Care,Children Looked After,Supplies and Services - Transfer Payments,06/06/2011,384240,"19,729.28",REVENUE,Oracle Care Ltd (Region 2)
Peterborough City Council,Children's & Education Services - Children's Social Care,Children Looked After,Supplies and Services - Transfer Payments,06/06/2011,384241,"20,825.35",REVENUE,Oracle Care Ltd (Region 2)
Peterborough City Council,Housing Services,Housing Benefits,Employees,06/06/2011,384330,"1,276.80",REVENUE,The Synergy Group
Peterborough City Council,More than one Service Area Category,More than one Service Division,More than one Expenses Type,06/06/2011,384710,"4,764.36","Mixture of Capital, Revenue and/or Balance Sheet",BusinessWatch UK Security Services Ltd
Peterborough City Council,Housing Services,Housing Benefits,Employees,06/06/2011,384760,"1,087.80",REVENUE,The Synergy Group
Peterborough City Council,Housing Services,Housing Benefits,Employees,06/06/2011,384804,962.86,REVENUE,The Synergy Group
Peterborough City Council,Housing Services,Housing Benefits,Employees,06/06/2011,384823,"1,029.00",REVENUE,The Synergy Group
Peterborough City Council,Support Services,Support Services,Supplies and Services,06/06/2011,385195,-690,REVENUE,Danwood Group Limited
Peterborough City Council,Children's & Education Services - Children's Social Care,Children Looked After,Supplies and Services - Transfer Payments,06/06/2011,385468,"-3,200.00",REVENUE,Oracle Care Ltd (Region 2)
Peterborough City Council,Housing Services,Housing Benefits,Employees,06/06/2011,385555,"1,360.80",REVENUE,The Synergy Group
Peterborough City Council,Housing Services,Housing Benefits,Employees,06/06/2011,386217,504,REVENUE,The Synergy Group
Peterborough City Council,Housing Services,Housing Benefits,Employees,06/06/2011,386218,668.86,REVENUE,The Synergy Group
Peterborough City Council,"Cultural, Environmental and Planning Services",Community Development,Supplies and Services,06/06/2011,386240,665.95,REVENUE,Triple SSS Limited
Peterborough City Council,"Cultural, Environmental and Planning Services",Environmental Initiatives,Supplies and Services,06/06/2011,386252,"1,200.00",REVENUE,Peterborough Environment City Trust
Peterborough City Council,Children's & Education Services - Education,Secondary,Supplies and Services,06/06/2011,386287,"4,414.28",REVENUE,IIC by Education (P'boro) Ltd
Peterborough City Council,Children's & Education Services - Children's Social Care,Other Children's & Families Services,Supplies and Services,06/06/2011,386539,"1,166.00",REVENUE,Thorpe Lodge Hotel
Peterborough City Council,Children's & Education Services - Children's Social Care,Other Children's & Families Services,Supplies and Services,06/06/2011,386540,"2,501.00",REVENUE,Thorpe Lodge Hotel
Peterborough City Council,Children's & Education Services - Children's Social Care,Other Children's & Families Services,Supplies and Services,06/06/2011,386541,"1,484.00",REVENUE,Thorpe Lodge Hotel
Peterborough City Council,Children's & Education Services - Education,Secondary,Supplies and Services,06/06/2011,386552,"35,866.91",REVENUE,IIC by Education (P'boro) Ltd
Peterborough City Council,Children's & Education Services - Education,Non-School Funding,Supplies and Services,06/06/2011,386569,"8,750.00",REVENUE,Newark Play Association Ltd
Peterborough City Council,Children's & Education Services - Children's Social Care,Other Children's & Families Services,Employees,06/06/2011,386585,"1,344.96",REVENUE,Blue Group International Ltd
Peterborough City Council,Housing Services,Homelessness,Supplies and Services,06/06/2011,386623,800,REVENUE,Peterborough Citizens Advice Bureau
Peterborough City Council,Children's & Education Services - Education,All Schools - apportion across sectors,Employees,06/06/2011,386629,540,REVENUE,Tribal Education Ltd
Peterborough City Council,Children's & Education Services - Children's Social Care,More than one Service Division,More than one Expenses Type,06/06/2011,386703,"2,649.40",REVENUE,R S P LTD
Peterborough City Council,"Cultural, Environmental and Planning Services",Community Development,Employees,06/06/2011,386791,"1,023.06",REVENUE,Anne Corder Recruitment
Peterborough City Council,"Highways, Roads & Transport Services",Public Transport,Supplies and Services,06/06/2011,386792,"3,240.00",REVENUE,Get Cycling CIC
Peterborough City Council,Children's & Education Services - Children's Social Care,Other Children's & Families Services,Supplies and Services,06/06/2011,386834,"1,956.00",REVENUE,Social Support Limited
Peterborough City Council,Children's & Education Services - Children's Social Care,Other Children's & Families Services,Supplies and Services,06/06/2011,386835,"2,143.63",REVENUE,Social Support Limited
Peterborough City Council,Children's & Education Services - Children's Social Care,More than one Service Division,Employees,06/06/2011,386841,"1,573.20",REVENUE,Care Recruitment UK Ltd
Peterborough City Council,Support Services,Support Services,Premises,06/06/2011,386993,"1,129.01",REVENUE,Princebuild Limited
Peterborough City Council,Deficit/(Surplus) on Trading Undertakings,Trading Account Surpluses & Deficits,Supplies and Services,06/06/2011,387002,504,REVENUE,Princebuild Limited
Peterborough City Council,Deficit/(Surplus) on Trading Undertakings,Trading Account Surpluses & Deficits,Premises,06/06/2011,387035,531.75,REVENUE,Princebuild Limited
Peterborough City Council,Capital,Capital,Capital Pending Update to BS,06/06/2011,387076,"32,566.13",CAPITAL,Benchmark Contracts Ltd
Peterborough City Council,"Cultural, Environmental and Planning Services",Planning Policy,Supplies and Services,06/06/2011,387219,780,REVENUE,Covergold Ltd
Peterborough City Council,"Cultural, Environmental and Planning Services",Planning Policy,Supplies and Services,06/06/2011,387242,"1,626.56",REVENUE,Cambridgeshire County Council
Peterborough City Council,"Highways, Roads & Transport Services",Regulatory services,Supplies and Services,06/06/2011,387266,900,REVENUE,id-direct Ltd
Peterborough City Council,"Highways, Roads & Transport Services",Public Transport,Supplies and Services,06/06/2011,387445,"2,040.00",REVENUE,Region Services Ltd
Peterborough City Council,More than one Service Area Category,More than one Service Division,Transport,06/06/2011,387474,518.4,REVENUE,R T Enterprises Ltd T/A Royal Taxis
Peterborough City Council,More than one Service Area Category,More than one Service Division,Balance Sheet,06/06/2011,387491,"1,850.07",Balance Sheet,IIC by Education (P'boro) Ltd
Peterborough City Council,"Highways, Roads & Transport Services",Public Transport,Supplies and Services,06/06/2011,387531,815.1,REVENUE,Veolia Transport UK Ltd
Peterborough City Council,Support Services,Support Services,Supplies and Services,06/06/2011,387587,"1,093.80",REVENUE,Eversheds LLP
Peterborough City Council,Children's & Education Services - Education,Non-School Funding,Supplies and Services,06/06/2011,387590,768,REVENUE,Top Class Tutors
Peterborough City Council,Children's & Education Services - Education,Non-School Funding,Supplies and Services,06/06/2011,387594,768,REVENUE,Top Class Tutors
Peterborough City Council,Children's & Education Services - Children's Social Care,Children Looked After,Supplies and Services,06/06/2011,387595,"10,639.20",REVENUE,Continuum Care & Educ. Group.
Peterborough City Council,Children's & Education Services - Education,Non-School Funding,Supplies and Services,06/06/2011,387600,864,REVENUE,Top Class Tutors
Peterborough City Council,Children's & Education Services - Children's Social Care,Family Support Services,Employees,06/06/2011,387623,"1,665.00",REVENUE,Care Recruitment UK Ltd
Peterborough City Council,Children's & Education Services - Education,Non-School Funding,Supplies and Services,06/06/2011,387624,864,REVENUE,Top Class Tutors
Peterborough City Council,Children's & Education Services - Education,Non-School Funding,Supplies and Services,06/06/2011,387713,864,REVENUE,Top Class Tutors
Peterborough City Council,Support Services,Support Services,Supplies and Services,06/06/2011,387760,"3,073.11",REVENUE,Capita Business Services Ltd
Peterborough City Council,Children's & Education Services - Children's Social Care,Family Support Services,Third Party Payments,06/06/2011,388373,"-1,094.81",REVENUE,Peterborough Provider Services
Peterborough City Council,Children's & Education Services - Education,Secondary,More than one Expenses Type,06/06/2011,388611,693.27,REVENUE,Redacted Personal Data
Peterborough City Council,Children's & Education Services - Education,Non-School Funding,Supplies and Services,06/06/2011,388618,"2,722.50",REVENUE,Anna-Ca-Soo Day Nursery
Peterborough City Council,Children's & Education Services - Education,Non-School Funding,Supplies and Services,06/06/2011,388619,585,REVENUE,Alpha Big Sky Ltd
Peterborough City Council,Children's & Education Services - Education,Non-School Funding,Supplies and Services,06/06/2011,388629,585,REVENUE,Alpha Big Sky Ltd
Peterborough City Council,Deficit/(Surplus) on Trading Undertakings,Trading Account Surpluses & Deficits,Premises,06/06/2011,388659,"2,031.60",REVENUE,Window Warehouse (GB)
Peterborough City Council,Support Services,Support Services,Supplies and Services,06/06/2011,388725,"6,300.00",REVENUE,Ntrinsic Consulting Europe Ltd
Peterborough City Council,Corporate & Democratic Core,Corporate Management,Supplies and Services,06/06/2011,388762,969.71,REVENUE,Everything Everywhere Ltd
Peterborough City Council,Support Services,Support Services & Management Costs,Supplies and Services,06/06/2011,388772,"1,947.12",REVENUE,Everything Everywhere Ltd
Peterborough City Council,Children's & Education Services - Children's Social Care,Support Services & Management Costs,Supplies and Services,06/06/2011,388773,"3,006.95",REVENUE,Everything Everywhere Ltd
Peterborough City Council,Support Services,Support Services,Supplies and Services,06/06/2011,388782,609.24,REVENUE,CINTRA Ltd
Peterborough City Council,Adult Social Care,Adult Social Care,Supplies and Services,06/06/2011,388789,"186,929.89",REVENUE,Peterborough Provider Services
Peterborough City Council,More than one Service Area Category,More than one Service Division,Balance Sheet,06/06/2011,388790,"27,058.69",Balance Sheet,Peterborough Provider Services
Peterborough City Council,More than one Service Area Category,More than one Service Division,Supplies and Services,06/06/2011,388798,"1,536.39",REVENUE,TNT Post Midlands Ltd
Peterborough City Council,Children's & Education Services - Children's Social Care,More than one Service Division,Supplies and Services,06/06/2011,388836,925.08,REVENUE,CINTRA Ltd
Peterborough City Council,More than one Service Area Category,More than one Service Division,Transport,06/06/2011,388847,666,REVENUE,Goldstar Cabs Ltd
Peterborough City Council,"Cultural, Environmental and Planning Services",Regulatory services,Supplies and Services,06/06/2011,389097,"2,400.00",REVENUE,Midland Environmental Contracts Ltd
Peterborough City Council,Children's & Education Services - Children's Social Care,Children Looked After,Transport,06/06/2011,389274,633.6,REVENUE,Redacted Personal Data
Peterborough City Council,More than one Service Area Category,More than one Service Division,More than one Expenses Type,06/06/2011,389275,"1,436.05",REVENUE,Redacted Personal Data
Peterborough City Council,More than one Service Area Category,More than one Service Division,Transport,06/06/2011,389276,"1,423.80",REVENUE,Redacted Personal Data
Peterborough City Council,More than one Service Area Category,More than one Service Division,Transport,06/06/2011,389277,"1,536.30",REVENUE,Redacted Personal Data
Peterborough City Council,More than one Service Area Category,More than one Service Division,Transport,06/06/2011,389279,695.25,REVENUE,Redacted Personal Data
Peterborough City Council,Children's & Education Services - Children's Social Care,Children Looked After,Transport,06/06/2011,389280,"2,637.75",REVENUE,Redacted Personal Data
Peterborough City Council,Children's & Education Services - Children's Social Care,Children Looked After,Transport,06/06/2011,389281,"1,671.30",REVENUE,Redacted Personal Data
Peterborough City Council,Children's & Education Services - Children's Social Care,Children Looked After,Transport,06/06/2011,389282,"2,199.60",REVENUE,Redacted Personal Data
Peterborough City Council,Children's & Education Services - Children's Social Care,Children Looked After,Transport,06/06/2011,389283,543.15,REVENUE,Redacted Personal Data
Peterborough City Council,Children's & Education Services - Education,Non-School Funding,Transport,06/06/2011,389304,"1,185.60",REVENUE,Redacted Personal Data
Peterborough City Council,Children's & Education Services - Education,Non-School Funding,Transport,06/06/2011,389311,"1,110.00",REVENUE,3 Star Ambassador Taxis
Peterborough City Council,Children's & Education Services - Education,Non-School Funding,Transport,06/06/2011,389313,883.22,REVENUE,Translinc Ltd
Peterborough City Council,Children's & Education Services - Education,Non-School Funding,Transport,06/06/2011,389315,547.2,REVENUE,Goldstar Cabs Ltd
Peterborough City Council,Children's & Education Services - Education,Non-School Funding,Transport,06/06/2011,389317,518.4,REVENUE,Peterborough Cars
Peterborough City Council,"Cultural, Environmental and Planning Services",Regulatory services,Supplies and Services,06/06/2011,389322,"1,563.84",REVENUE,East of England LGA
Peterborough City Council,Capital,Capital,Capital Pending Update to BS,06/06/2011,389351,"139,233.60",CAPITAL,PG Robinson t/a PGR Construction
Peterborough City Council,Children's & Education Services - Children's Social Care,Service Strategy,Employees,06/06/2011,389359,"2,844.60",REVENUE,Gosfield House
Peterborough City Council,Children's & Education Services - Education,Secondary,Premises,07/06/2011,389323,"8,633.47",REVENUE,Southern Electric
Peterborough City Council,Capital,Capital,Capital Pending Update to BS,08/06/2011,376415,"2,940.00",CAPITAL,Clouds
Peterborough City Council,Housing Services,Housing Benefits,Employees,08/06/2011,384336,"1,255.80",REVENUE,The Synergy Group
Peterborough City Council,Housing Services,Housing Benefits,Employees,08/06/2011,384813,"1,216.80",REVENUE,The Synergy Group
Peterborough City Council,"Cultural, Environmental and Planning Services",Development Control,Fees and Charges,08/06/2011,385081,670,REVENUE,Redacted Personal Data
Peterborough City Council,Deficit/(Surplus) on Trading Undertakings,Trading Account Surpluses & Deficits,Premises,08/06/2011,385283,"3,394.40",REVENUE,British Gas Business
Peterborough City Council,More than one Service Area Category,More than one Service Division,Supplies and Services,08/06/2011,385402,687.98,REVENUE,Crown Records Management Ltd
Peterborough City Council,Deficit/(Surplus) on Trading Undertakings,Trading Account Surpluses & Deficits,Supplies and Services,08/06/2011,386589,"4,032.00",REVENUE,Perkins Engines Co Ltd
Peterborough City Council,Children's & Education Services - Education,Management and support services,Supplies and Services,08/06/2011,386777,"12,000.00",REVENUE,Peterborough Environment City Trust
Peterborough City Council,"Highways, Roads & Transport Services","Transport planning, policy and strategy",Supplies and Services,08/06/2011,386779,661.5,REVENUE,Johnston Press Midlands Division
Peterborough City Council,Children's & Education Services - Children's Social Care,Children Looked After,Supplies and Services,08/06/2011,386793,767.8,REVENUE,Redacted Personal Data
Peterborough City Council,"Cultural, Environmental and Planning Services",Environmental Initiatives,Supplies and Services,08/06/2011,386796,"3,180.00",REVENUE,Forum for the Future
Peterborough City Council,Children's & Education Services - Children's Social Care,Children Looked After,Supplies and Services - Transfer Payments,08/06/2011,386797,"11,000.00",REVENUE,TulipCare
Peterborough City Council,Support Services,Support Services,Employees,08/06/2011,386801,"1,120.50",REVENUE,Venn Group Ltd
Peterborough City Council,Children's & Education Services - Children's Social Care,Children Looked After,Supplies and Services,08/06/2011,386831,"7,680.00",REVENUE,On Track Education Services Ltd
Peterborough City Council,Children's & Education Services - Children's Social Care,Family Support Services,Employees,08/06/2011,386896,"2,066.40",REVENUE,Jenx Ltd
Peterborough City Council,Children's & Education Services - Education,Secondary,Supplies and Services,08/06/2011,386897,720,REVENUE,Tallington Lakes Ltd
Peterborough City Council,Capital,Capital,Capital Pending Update to BS,08/06/2011,386901,"1,827.60",CAPITAL,Vysionics ITS Limited
Peterborough City Council,"Highways, Roads & Transport Services",Regulatory services,Supplies and Services,08/06/2011,387151,"10,256.40",REVENUE,Halcrow Group Ltd
Peterborough City Council,Capital,Capital,Capital Pending Update to BS,08/06/2011,387175,"17,798.40",CAPITAL,AECOM Ltd
Peterborough City Council,Support Services,Support Services,Supplies and Services,08/06/2011,387183,"2,190.00",REVENUE,Audit Commission
Peterborough City Council,Children's & Education Services - Children's Social Care,Support Services & Management Costs,Employees,08/06/2011,387225,816,REVENUE,City College Peterborough
Peterborough City Council,Children's & Education Services - Education,Secondary,Employees,08/06/2011,387269,960,REVENUE,Top Class Tutors
Peterborough City Council,Children's & Education Services - Children's Social Care,Family Support Services,Premises,08/06/2011,387321,614.8,REVENUE,Bright Hygiene Manage. (London) Ltd
Peterborough City Council,"Cultural, Environmental and Planning Services","Cemetery, Crematorium & Mortuary Services",Supplies and Services,08/06/2011,387322,"1,032.00",REVENUE,Ashdown Supplies
Peterborough City Council,Deficit/(Surplus) on Trading Undertakings,Trading Account Surpluses & Deficits,Supplies and Services,08/06/2011,387342,579.36,REVENUE,Safetykleen UK Ltd
Peterborough City Council,"Cultural, Environmental and Planning Services",Development Control,Fees and Charges,08/06/2011,387442,670,REVENUE,K D H Projects Ltd
Peterborough City Council,Children's & Education Services - Children's Social Care,Support Services & Management Costs,Supplies and Services,08/06/2011,387520,700,REVENUE,Redacted Personal Data
Peterborough City Council,More than one Service Area Category,More than one Service Division,Supplies and Services,08/06/2011,387555,687.98,REVENUE,Crown Records Management Ltd
Peterborough City Council,More than one Service Area Category,More than one Service Division,Supplies and Services,08/06/2011,387557,709.27,REVENUE,Crown Records Management Ltd
Peterborough City Council,Children's & Education Services - Education,Non-School Funding,Employees,08/06/2011,387601,"3,504.60",REVENUE,Top Class Tutors
Peterborough City Council,"Highways, Roads & Transport Services","Transport planning, policy and strategy",Supplies and Services,08/06/2011,387614,529.19,REVENUE,Johnston Press Midlands Division
Peterborough City Council,Central Services to the Public,Elections,Supplies and Services,08/06/2011,387675,772.2,REVENUE,Main Event Products Ltd
Peterborough City Council,Children's & Education Services - Children's Social Care,Other Children's & Families Services,Employees,08/06/2011,387699,"1,512.00",REVENUE,Blue Group International Ltd
Peterborough City Council,"Cultural, Environmental and Planning Services",Economic Development,Employees,08/06/2011,387724,"1,727.14",REVENUE,Hays Specialist Recruitment Ltd
Peterborough City Council,"Cultural, Environmental and Planning Services",Economic Development,Employees,08/06/2011,387725,"1,360.80",REVENUE,Hays Specialist Recruitment Ltd
Peterborough City Council,"Highways, Roads & Transport Services","Transport planning, policy and strategy",Employees,08/06/2011,387727,"1,068.00",REVENUE,Hays Specialist Recruitment Ltd
Peterborough City Council,"Cultural, Environmental and Planning Services",Economic Development,Employees,08/06/2011,387728,"1,189.66",REVENUE,Hays Specialist Recruitment Ltd
Peterborough City Council,"Highways, Roads & Transport Services","Transport planning, policy and strategy",Employees,08/06/2011,387729,"1,068.00",REVENUE,Hays Specialist Recruitment Ltd
Peterborough City Council,"Cultural, Environmental and Planning Services",Economic Development,Employees,08/06/2011,387730,"1,069.20",REVENUE,Hays Specialist Recruitment Ltd
Peterborough City Council,"Highways, Roads & Transport Services","Transport planning, policy and strategy",Employees,08/06/2011,387763,"1,332.00",REVENUE,Randstad CPE
Peterborough City Council,Housing Services,Housing Benefits,Employees,08/06/2011,388164,"1,170.00",REVENUE,The Synergy Group
Peterborough City Council,Housing Services,Housing Benefits,Employees,08/06/2011,388165,"1,216.80",REVENUE,The Synergy Group
Peterborough City Council,Housing Services,Housing Benefits,Employees,08/06/2011,388169,"1,085.40",REVENUE,The Synergy Group
Peterborough City Council,Support Services,Support Services,Supplies and Services,08/06/2011,388245,666,REVENUE,Key People Ltd
Peterborough City Council,Children's & Education Services - Education,Non-School Funding,Employees,08/06/2011,388359,867.6,REVENUE,Mana Resourcing Ltd
Peterborough City Council,Children's & Education Services - Education,Secondary,Employees,08/06/2011,388361,876,REVENUE,Mana Resourcing Ltd
Peterborough City Council,"Highways, Roads & Transport Services","Transport planning, policy and strategy",Supplies and Services,08/06/2011,388366,"5,922.00",REVENUE,Truvelo (UK) Ltd
Peterborough City Council,Support Services,Support Services,Supplies and Services,08/06/2011,388533,752.64,REVENUE,Pitney Bowes Ltd
Peterborough City Council,More than one Service Area Category,More than one Service Division,Balance Sheet,08/06/2011,388644,"1,345.00",Balance Sheet,St John's (Orton) Primary School
Peterborough City Council,Support Services,Support Services,Supplies and Services,08/06/2011,388658,930.6,REVENUE,Weightmans LLP
Peterborough City Council,More than one Service Area Category,More than one Service Division,Supplies and Services,08/06/2011,388805,955.14,REVENUE,TNT Post Midlands Ltd
Peterborough City Council,More than one Service Area Category,More than one Service Division,Balance Sheet,08/06/2011,388842,631.51,Balance Sheet,Rossendales C B Ltd
Peterborough City Council,Children's & Education Services - Children's Social Care,Support Services & Management Costs,Supplies and Services,08/06/2011,388849,"2,700.00",REVENUE,Redacted Personal Data
Peterborough City Council,Children's & Education Services - Children's Social Care,Youth Justice,Transport,08/06/2011,388917,"1,001.70",REVENUE,G4S Care & Justice Services (UK) Ltd
Peterborough City Council,Children's & Education Services - Children's Social Care,Family Support Services,Third Party Payments,08/06/2011,388974,"26,707.25",REVENUE,KIDS
Peterborough City Council,Support Services,Support Services,Supplies and Services,08/06/2011,389155,581.55,REVENUE,Pitney Bowes Ltd
Peterborough City Council,Support Services,Support Services,Premises,08/06/2011,389169,"8,436.00",REVENUE,Debenham Tie Leung
Peterborough City Council,Support Services,Support Services,Supplies and Services,08/06/2011,389231,"16,903.02",REVENUE,Edenred
Peterborough City Council,Support Services,Support Services,Supplies and Services,08/06/2011,389232,578.62,REVENUE,Edenred
Peterborough City Council,Children's & Education Services - Education,Non-School Funding,Transport,08/06/2011,389294,"2,698.00",REVENUE,Aardvark Coaches
Peterborough City Council,Children's & Education Services - Education,Non-School Funding,Transport,08/06/2011,389295,"2,774.00",REVENUE,Aardvark Coaches
Peterborough City Council,Children's & Education Services - Education,Non-School Funding,Transport,08/06/2011,389296,"2,745.50",REVENUE,Aardvark Coaches
Peterborough City Council,Children's & Education Services - Education,Non-School Funding,Transport,08/06/2011,389318,"2,774.00",REVENUE,Aardvark Coaches
Peterborough City Council,Children's & Education Services - Education,Non-School Funding,Transport,08/06/2011,389320,"3,287.00",REVENUE,Aardvark Coaches
Peterborough City Council,Children's & Education Services - Children's Social Care,Family Support Services,Third Party Payments,08/06/2011,389328,"72,780.50",REVENUE,Peterborough Diocesan Family Care
Peterborough City Council,Children's & Education Services - Children's Social Care,Family Support Services,Third Party Payments,08/06/2011,389329,"53,833.25",REVENUE,Peterborough Diocesan Family Care
Peterborough City Council,Children's & Education Services - Children's Social Care,Family Support Services,Third Party Payments,08/06/2011,389330,"63,833.25",REVENUE,Peterborough Diocesan Family Care
Peterborough City Council,More than one Service Area Category,More than one Service Division,Balance Sheet,08/06/2011,389362,"1,165.06",Balance Sheet,Browne Jacobson
Peterborough City Council,Deficit/(Surplus) on Trading Undertakings,Trading Account Surpluses & Deficits,Premises,08/06/2011,389418,"4,165.04",REVENUE,Britannia Fire & Security Ltd
Peterborough City Council,Support Services,Support Services,Supplies and Services,08/06/2011,389424,576.65,REVENUE,O2 (UK) Ltd
Peterborough City Council,Capital,Capital,Capital Pending Update to BS,08/06/2011,389458,"5,710.98",CAPITAL,The K A Wing Group Ltd
Peterborough City Council,Children's & Education Services - Children's Social Care,Children Looked After,Supplies and Services,08/06/2011,389460,"5,420.10",REVENUE,St Andrew's Healthcare
Peterborough City Council,Children's & Education Services - Children's Social Care,Children Looked After,Supplies and Services,08/06/2011,389461,"5,420.10",REVENUE,St Andrew's Healthcare
Peterborough City Council,Corporate & Democratic Core,Democratic Representation & Managemetn,Supplies and Services,08/06/2011,389536,"7,848.00",REVENUE,Modern Mindset Ltd
Peterborough City Council,Capital,Capital,Capital Pending Update to BS,08/06/2011,389551,"109,361.83",CAPITAL,Haley Sharpe Design Ltd
Peterborough City Council,Adult Social Care,Adult Social Care,Third Party Payments,08/06/2011,389555,"3,305,909.10",REVENUE,Peterborough PCT
Peterborough City Council,Children's & Education Services - Children's Social Care,Other Children's & Families Services,Supplies and Services - Transfer Payments,08/06/2011,389602,600,REVENUE,Redacted Personal Data
Peterborough City Council,Children's & Education Services - Children's Social Care,Other Children's & Families Services,Supplies and Services - Transfer Payments,08/06/2011,389603,613.6,REVENUE,Redacted Personal Data
Peterborough City Council,Children's & Education Services - Children's Social Care,Children Looked After,Supplies and Services - Transfer Payments,08/06/2011,389724,971.22,REVENUE,Redacted Personal Data
Peterborough City Council,Children's & Education Services - Children's Social Care,Children Looked After,Supplies and Services - Transfer Payments,08/06/2011,389725,776.79,REVENUE,Redacted Personal Data
Peterborough City Council,Children's & Education Services - Children's Social Care,Children Looked After,Supplies and Services - Transfer Payments,08/06/2011,389726,560.98,REVENUE,Redacted Personal Data
Peterborough City Council,Children's & Education Services - Children's Social Care,Children Looked After,Supplies and Services - Transfer Payments,08/06/2011,389727,529.9,REVENUE,Redacted Personal Data
Peterborough City Council,Children's & Education Services - Children's Social Care,Children Looked After,Supplies and Services - Transfer Payments,08/06/2011,389728,992.6,REVENUE,Redacted Personal Data
Peterborough City Council,Children's & Education Services - Children's Social Care,Children Looked After,Supplies and Services - Transfer Payments,08/06/2011,389729,884.94,REVENUE,Redacted Personal Data
Peterborough City Council,Children's & Education Services - Children's Social Care,Children Looked After,Supplies and Services - Transfer Payments,08/06/2011,389731,529.9,REVENUE,Redacted Personal Data
Peterborough City Council,Children's & Education Services - Children's Social Care,Children Looked After,Supplies and Services - Transfer Payments,08/06/2011,389732,529.9,REVENUE,Redacted Personal Data
Peterborough City Council,Children's & Education Services - Children's Social Care,Children Looked After,Supplies and Services - Transfer Payments,08/06/2011,389733,529.9,REVENUE,Redacted Personal Data
Peterborough City Council,Children's & Education Services - Children's Social Care,Children Looked After,Supplies and Services - Transfer Payments,08/06/2011,389734,529.9,REVENUE,Redacted Personal Data
Peterborough City Council,Children's & Education Services - Children's Social Care,Children Looked After,Supplies and Services - Transfer Payments,08/06/2011,389735,529.9,REVENUE,Redacted Personal Data
Peterborough City Council,Children's & Education Services - Children's Social Care,Children Looked After,Supplies and Services - Transfer Payments,08/06/2011,389736,529.9,REVENUE,Redacted Personal Data
Peterborough City Council,Children's & Education Services - Children's Social Care,Children Looked After,Supplies and Services - Transfer Payments,08/06/2011,389740,560.98,REVENUE,Redacted Personal Data
Peterborough City Council,Children's & Education Services - Children's Social Care,Children Looked After,Supplies and Services - Transfer Payments,08/06/2011,389741,560.98,REVENUE,Redacted Personal Data
Peterborough City Council,Children's & Education Services - Children's Social Care,Children Looked After,Supplies and Services - Transfer Payments,08/06/2011,389745,560.98,REVENUE,Redacted Personal Data
Peterborough City Council,Children's & Education Services - Children's Social Care,Children Looked After,Supplies and Services - Transfer Payments,08/06/2011,389746,745.71,REVENUE,Redacted Personal Data
Peterborough City Council,Children's & Education Services - Children's Social Care,Children Looked After,Supplies and Services - Transfer Payments,08/06/2011,389747,529.9,REVENUE,Redacted Personal Data
Peterborough City Council,Children's & Education Services - Children's Social Care,Children Looked After,Supplies and Services - Transfer Payments,08/06/2011,389748,529.9,REVENUE,Redacted Personal Data
Peterborough City Council,Children's & Education Services - Children's Social Care,Children Looked After,Supplies and Services - Transfer Payments,08/06/2011,389749,529.9,REVENUE,Redacted Personal Data
Peterborough City Council,Children's & Education Services - Children's Social Care,Children Looked After,Supplies and Services - Transfer Payments,08/06/2011,389752,529.9,REVENUE,Redacted Personal Data
Peterborough City Council,Children's & Education Services - Children's Social Care,Children Looked After,Supplies and Services - Transfer Payments,08/06/2011,389753,529.9,REVENUE,Redacted Personal Data
Peterborough City Council,Children's & Education Services - Children's Social Care,Children Looked After,Supplies and Services - Transfer Payments,08/06/2011,389754,529.9,REVENUE,Redacted Personal Data
Peterborough City Council,Children's & Education Services - Children's Social Care,Children Looked After,Supplies and Services - Transfer Payments,08/06/2011,389758,769.02,REVENUE,Redacted Personal Data
Peterborough City Council,Children's & Education Services - Children's Social Care,Children Looked After,Supplies and Services - Transfer Payments,08/06/2011,389759,769.02,REVENUE,Redacted Personal Data
Peterborough City Council,Children's & Education Services - Children's Social Care,Children Looked After,Supplies and Services - Transfer Payments,08/06/2011,389764,560.98,REVENUE,Redacted Personal Data
Peterborough City Council,Children's & Education Services - Children's Social Care,Children Looked After,Supplies and Services - Transfer Payments,08/06/2011,389765,885.08,REVENUE,Redacted Personal Data
Peterborough City Council,Children's & Education Services - Children's Social Care,Children Looked After,Supplies and Services - Transfer Payments,08/06/2011,389768,529.9,REVENUE,Redacted Personal Data
Peterborough City Council,Children's & Education Services - Children's Social Care,Children Looked After,Supplies and Services - Transfer Payments,08/06/2011,389769,529.9,REVENUE,Redacted Personal Data
Peterborough City Council,Children's & Education Services - Children's Social Care,Children Looked After,Supplies and Services - Transfer Payments,08/06/2011,389771,529.9,REVENUE,Redacted Personal Data
Peterborough City Council,Children's & Education Services - Children's Social Care,Children Looked After,Supplies and Services - Transfer Payments,08/06/2011,389772,822.29,REVENUE,Redacted Personal Data
Peterborough City Council,Children's & Education Services - Children's Social Care,Children Looked After,Supplies and Services - Transfer Payments,08/06/2011,389776,560.98,REVENUE,Redacted Personal Data
Peterborough City Council,Children's & Education Services - Children's Social Care,Children Looked After,Supplies and Services - Transfer Payments,08/06/2011,389782,529.9,REVENUE,Redacted Personal Data
Peterborough City Council,Children's & Education Services - Children's Social Care,Children Looked After,Supplies and Services - Transfer Payments,08/06/2011,389787,560.98,REVENUE,Redacted Personal Data
Peterborough City Council,Children's & Education Services - Children's Social Care,Children Looked After,Supplies and Services - Transfer Payments,08/06/2011,389799,594.15,REVENUE,Redacted Personal Data
Peterborough City Council,Children's & Education Services - Children's Social Care,Children Looked After,Supplies and Services - Transfer Payments,08/06/2011,389806,529.9,REVENUE,Redacted Personal Data
Peterborough City Council,Children's & Education Services - Children's Social Care,Family Support Services,Supplies and Services,08/06/2011,389818,"1,148.22",REVENUE,Redacted Personal Data
Peterborough City Council,Children's & Education Services - Children's Social Care,Children Looked After,Supplies and Services - Transfer Payments,08/06/2011,389838,529.9,REVENUE,Redacted Personal Data
Peterborough City Council,Children's & Education Services - Children's Social Care,Children Looked After,Supplies and Services - Transfer Payments,08/06/2011,389844,529.9,REVENUE,Redacted Personal Data
Peterborough City Council,Children's & Education Services - Children's Social Care,Children Looked After,Supplies and Services - Transfer Payments,08/06/2011,389845,529.9,REVENUE,Redacted Personal Data
Peterborough City Council,Children's & Education Services - Children's Social Care,Children Looked After,Supplies and Services - Transfer Payments,08/06/2011,389854,885.08,REVENUE,Redacted Personal Data
Peterborough City Council,Children's & Education Services - Children's Social Care,Children Looked After,Supplies and Services - Transfer Payments,08/06/2011,389857,885.08,REVENUE,Redacted Personal Data
Peterborough City Council,Children's & Education Services - Children's Social Care,Children Looked After,Supplies and Services - Transfer Payments,08/06/2011,389858,885.08,REVENUE,Redacted Personal Data
Peterborough City Council,Children's & Education Services - Children's Social Care,Children Looked After,Supplies and Services - Transfer Payments,08/06/2011,389859,885.08,REVENUE,Redacted Personal Data
Peterborough City Council,Children's & Education Services - Children's Social Care,Children Looked After,Supplies and Services - Transfer Payments,08/06/2011,389860,885.08,REVENUE,Redacted Personal Data
Peterborough City Council,Children's & Education Services - Children's Social Care,Children Looked After,Supplies and Services - Transfer Payments,08/06/2011,389866,529.9,REVENUE,Redacted Personal Data
Peterborough City Council,Children's & Education Services - Children's Social Care,Children Looked After,Supplies and Services - Transfer Payments,08/06/2011,389870,560.98,REVENUE,Redacted Personal Data
Peterborough City Council,Children's & Education Services - Children's Social Care,Children Looked After,Supplies and Services - Transfer Payments,08/06/2011,389876,529.9,REVENUE,Redacted Personal Data
Peterborough City Council,Children's & Education Services - Children's Social Care,Children Looked After,Supplies and Services - Transfer Payments,08/06/2011,389890,529.9,REVENUE,Redacted Personal Data
Peterborough City Council,Children's & Education Services - Children's Social Care,Children Looked After,Supplies and Services - Transfer Payments,08/06/2011,389891,560.98,REVENUE,Redacted Personal Data
Peterborough City Council,Children's & Education Services - Children's Social Care,Children Looked After,Supplies and Services - Transfer Payments,08/06/2011,389892,529.9,REVENUE,Redacted Personal Data
Peterborough City Council,Children's & Education Services - Children's Social Care,Children Looked After,Supplies and Services - Transfer Payments,08/06/2011,389938,510.4,REVENUE,Redacted Personal Data
Peterborough City Council,Children's & Education Services - Children's Social Care,Other Children's & Families Services,Supplies and Services - Transfer Payments,08/06/2011,389953,"2,544.68",REVENUE,Redacted Personal Data
Peterborough City Council,Court Services,Coroner's Court Service,More than one Expenses Type,08/06/2011,389963,"11,566.28",REVENUE,Coroners Service
Peterborough City Council,More than one Service Area Category,More than one Service Division,Supplies and Services,08/06/2011,389977,"14,174.85",REVENUE,Peterborough City Council
Peterborough City Council,More than one Service Area Category,More than one Service Division,More than one Expenses Type,08/06/2011,390004,"1,273.47",REVENUE,Peterborough City Council
Peterborough City Council,"Cultural, Environmental and Planning Services","Cemetery, Crematorium & Mortuary Services",Premises,08/06/2011,390008,564,REVENUE,Extreme Survillance
Peterborough City Council,Deficit/(Surplus) on Trading Undertakings,Trading Account Surpluses & Deficits,Supplies and Services,08/06/2011,390020,599.25,REVENUE,Valuation Office Agency
Peterborough City Council,Capital,Capital,Capital Pending Update to BS,08/06/2011,390022,"1,641.60",CAPITAL,TSL Education Ltd
Peterborough City Council,Support Services,Support Services,Supplies and Services,10/06/2011,371622,517.2,REVENUE,P & A Medical Ltd
Peterborough City Council,Support Services,Support Services,Employees,10/06/2011,377715,725.83,REVENUE,Tribal Resourcing Ltd
Peterborough City Council,Capital,Capital,Capital Pending Update to BS,10/06/2011,380013,"6,010.30",CAPITAL,Serco Ltd
Peterborough City Council,Children's & Education Services - Children's Social Care,Youth Justice,Supplies and Services,10/06/2011,381658,"10,500.00",REVENUE,The Froglife Trust
Peterborough City Council,Housing Services,Housing Benefits,Employees,10/06/2011,381720,"1,177.50",REVENUE,The Synergy Group
Peterborough City Council,Housing Services,Housing Benefits,Employees,10/06/2011,384328,"1,327.50",REVENUE,The Synergy Group
Peterborough City Council,Central Services to the Public,Local Tax,Employees,10/06/2011,384333,720,REVENUE,The Synergy Group
Peterborough City Council,Central Services to the Public,Local Tax,More than one Expenses Type,10/06/2011,384806,"1,420.80",REVENUE,The Synergy Group
Peterborough City Council,Housing Services,Housing Benefits,Employees,10/06/2011,384807,"1,372.50",REVENUE,The Synergy Group
Peterborough City Council,Housing Services,Housing Benefits,Employees,10/06/2011,384819,907.5,REVENUE,The Synergy Group
Peterborough City Council,Central Services to the Public,Local Tax,More than one Expenses Type,10/06/2011,384821,"1,152.00",REVENUE,The Synergy Group
Peterborough City Council,Children's & Education Services - Education,Non-School Funding,Supplies and Services,10/06/2011,385411,592.5,REVENUE,CINTRA Ltd
Peterborough City Council,More than one Service Area Category,More than one Service Division,Supplies and Services,10/06/2011,385525,"12,423.31",REVENUE,Loomis UK Ltd
Peterborough City Council,Central Services to the Public,Local Tax,More than one Expenses Type,10/06/2011,385548,"1,190.40",REVENUE,The Synergy Group
Peterborough City Council,Housing Services,Housing Benefits,Employees,10/06/2011,385559,"1,380.00",REVENUE,The Synergy Group
Peterborough City Council,Central Services to the Public,Local Tax,More than one Expenses Type,10/06/2011,386220,"1,113.60",REVENUE,The Synergy Group
Peterborough City Council,Housing Services,Housing Benefits,Employees,10/06/2011,386236,952.5,REVENUE,The Synergy Group
Peterborough City Council,"Cultural, Environmental and Planning Services","Cemetery, Crematorium & Mortuary Services",Supplies and Services,10/06/2011,387435,"5,704.40",REVENUE,"Strickland, Mr A M"
Peterborough City Council,Central Services to the Public,Local Tax,More than one Expenses Type,10/06/2011,388160,"1,075.20",REVENUE,The Synergy Group
Peterborough City Council,Deficit/(Surplus) on Trading Undertakings,Trading Account Surpluses & Deficits,Premises,10/06/2011,388196,"6,600.00",REVENUE,Anglia Support Partnership
Peterborough City Council,Support Services,Support Services,Supplies and Services,10/06/2011,388267,"3,150.25",REVENUE,Governetz Ltd
Peterborough City Council,Children's & Education Services - Children's Social Care,Children Looked After,Supplies and Services - Transfer Payments,10/06/2011,388578,"3,556.01",REVENUE,Foster Care Associates Ltd FCA
Peterborough City Council,Children's & Education Services - Children's Social Care,Children Looked After,Supplies and Services - Transfer Payments,10/06/2011,388579,"3,556.01",REVENUE,Foster Care Associates Ltd FCA
Peterborough City Council,Children's & Education Services - Children's Social Care,Children Looked After,Supplies and Services - Transfer Payments,10/06/2011,388580,"3,556.01",REVENUE,Foster Care Associates Ltd FCA
Peterborough City Council,Children's & Education Services - Children's Social Care,Children Looked After,Supplies and Services - Transfer Payments,10/06/2011,388581,"5,240.55",REVENUE,Foster Care Associates Ltd FCA
Peterborough City Council,Children's & Education Services - Children's Social Care,Children Looked After,Supplies and Services - Transfer Payments,10/06/2011,388582,"2,907.49",REVENUE,Foster Care Associates Ltd FCA
Peterborough City Council,Children's & Education Services - Children's Social Care,Children Looked After,Supplies and Services - Transfer Payments,10/06/2011,388583,"3,556.01",REVENUE,Foster Care Associates Ltd FCA
Peterborough City Council,Children's & Education Services - Children's Social Care,Children Looked After,Supplies and Services - Transfer Payments,10/06/2011,388584,"3,556.01",REVENUE,Foster Care Associates Ltd FCA
Peterborough City Council,Children's & Education Services - Children's Social Care,Children Looked After,Supplies and Services - Transfer Payments,10/06/2011,388585,"4,380.30",REVENUE,Foster Care Associates Ltd FCA
Peterborough City Council,Children's & Education Services - Children's Social Care,Children Looked After,Supplies and Services - Transfer Payments,10/06/2011,388586,"3,556.01",REVENUE,Foster Care Associates Ltd FCA
Peterborough City Council,Children's & Education Services - Children's Social Care,Children Looked After,Supplies and Services - Transfer Payments,10/06/2011,388587,"2,907.49",REVENUE,Foster Care Associates Ltd FCA
Peterborough City Council,Children's & Education Services - Children's Social Care,Children Looked After,Supplies and Services - Transfer Payments,10/06/2011,388588,"3,556.01",REVENUE,Foster Care Associates Ltd FCA
Peterborough City Council,Children's & Education Services - Children's Social Care,Children Looked After,Supplies and Services - Transfer Payments,10/06/2011,388590,"3,556.01",REVENUE,Foster Care Associates Ltd FCA
Peterborough City Council,Children's & Education Services - Children's Social Care,Children Looked After,Supplies and Services - Transfer Payments,10/06/2011,388591,"3,556.01",REVENUE,Foster Care Associates Ltd FCA
Peterborough City Council,Children's & Education Services - Children's Social Care,Children Looked After,Supplies and Services - Transfer Payments,10/06/2011,388592,"4,220.96",REVENUE,Foster Care Associates Ltd FCA
Peterborough City Council,Children's & Education Services - Children's Social Care,Children Looked After,Supplies and Services - Transfer Payments,10/06/2011,388594,"2,907.49",REVENUE,Foster Care Associates Ltd FCA
Peterborough City Council,Children's & Education Services - Children's Social Care,Children Looked After,Supplies and Services - Transfer Payments,10/06/2011,388595,"2,907.49",REVENUE,Foster Care Associates Ltd FCA
Peterborough City Council,Children's & Education Services - Children's Social Care,Children Looked After,Supplies and Services - Transfer Payments,10/06/2011,388596,"3,556.01",REVENUE,Foster Care Associates Ltd FCA
Peterborough City Council,Children's & Education Services - Children's Social Care,Children Looked After,Supplies and Services - Transfer Payments,10/06/2011,388597,"2,907.49",REVENUE,Foster Care Associates Ltd FCA
Peterborough City Council,Children's & Education Services - Children's Social Care,Children Looked After,Supplies and Services - Transfer Payments,10/06/2011,388600,"3,556.01",REVENUE,Foster Care Associates Ltd FCA
Peterborough City Council,Children's & Education Services - Children's Social Care,Children Looked After,Supplies and Services - Transfer Payments,10/06/2011,388601,"3,556.01",REVENUE,Foster Care Associates Ltd FCA
Peterborough City Council,More than one Service Area Category,More than one Service Division,More than one Expenses Type,10/06/2011,388796,"55,222.57","Mixture of Capital, Revenue and/or Balance Sheet",Ringway Infrastructure Services
Peterborough City Council,"Cultural, Environmental and Planning Services",Economic Development,Employees,10/06/2011,388845,"1,093.33",REVENUE,Redacted Personal Data
Peterborough City Council,More than one Service Area Category,More than one Service Division,More than one Expenses Type,10/06/2011,388857,"75,331.15","Mixture of Capital, Revenue and/or Balance Sheet",Ringway Infrastructure Services
Peterborough City Council,Support Services,Support Services,Supplies and Services,10/06/2011,389198,"2,025.00",REVENUE,AMTEC Consulting Plc
Peterborough City Council,Support Services,Support Services,Supplies and Services,10/06/2011,389199,"8,910.00",REVENUE,AMTEC Consulting Plc
Peterborough City Council,Capital,Capital,Capital Pending Update to BS,10/06/2011,389200,"64,982.40",CAPITAL,AMTEC Consulting Plc
Peterborough City Council,Support Services,Support Services,Supplies and Services,10/06/2011,389201,"5,098.27",REVENUE,AMTEC Consulting Plc
Peterborough City Council,Support Services,Support Services,Supplies and Services,10/06/2011,389202,"3,420.00",REVENUE,AMTEC Consulting Plc
Peterborough City Council,Support Services,Support Services,Supplies and Services,10/06/2011,389203,"15,120.00",REVENUE,AMTEC Consulting Plc
Peterborough City Council,Capital,Capital,Capital Pending Update to BS,10/06/2011,389205,"9,234.00",CAPITAL,AMTEC Consulting Plc
Peterborough City Council,Capital,Capital,Capital Pending Update to BS,10/06/2011,389206,"5,460.00",CAPITAL,AMTEC Consulting Plc
Peterborough City Council,"Cultural, Environmental and Planning Services",Economic Development,Supplies and Services,10/06/2011,389207,"28,709.76",REVENUE,AMTEC Consulting Plc
Peterborough City Council,Support Services,Support Services,Supplies and Services,10/06/2011,389208,"10,353.00",REVENUE,AMTEC Consulting Plc
Peterborough City Council,Support Services,Support Services,Supplies and Services,10/06/2011,389209,"5,601.60",REVENUE,AMTEC Consulting Plc
Peterborough City Council,Support Services,Support Services,Supplies and Services,10/06/2011,389210,"11,340.00",REVENUE,AMTEC Consulting Plc
Peterborough City Council,Support Services,Support Services,Supplies and Services,10/06/2011,389211,"58,743.00",REVENUE,AMTEC Consulting Plc
Peterborough City Council,Support Services,Support Services & Management Costs,Supplies and Services,10/06/2011,389212,"5,040.00",REVENUE,AMTEC Consulting Plc
Peterborough City Council,Capital,Capital,Capital Pending Update to BS,10/06/2011,389213,"31,718.40",CAPITAL,AMTEC Consulting Plc
Peterborough City Council,Support Services,Support Services,Supplies and Services,10/06/2011,389214,"16,200.00",REVENUE,AMTEC Consulting Plc
Peterborough City Council,Capital,Capital,Capital Pending Update to BS,10/06/2011,389215,"8,460.00",CAPITAL,AMTEC Consulting Plc
Peterborough City Council,Capital,Capital,Capital Pending Update to BS,10/06/2011,389216,"7,200.00",CAPITAL,AMTEC Consulting Plc
Peterborough City Council,Support Services,Support Services,Supplies and Services,10/06/2011,389217,"13,344.00",REVENUE,AMTEC Consulting Plc
Peterborough City Council,Children's & Education Services - Education,Non-School Funding,Supplies and Services,10/06/2011,389218,"6,669.60",REVENUE,AMTEC Consulting Plc
Peterborough City Council,Support Services,Support Services,Supplies and Services,10/06/2011,389219,"17,280.00",REVENUE,AMTEC Consulting Plc
Peterborough City Council,Support Services,Support Services,Supplies and Services,10/06/2011,389220,"2,361.60",REVENUE,AMTEC Consulting Plc
Peterborough City Council,Support Services,Support Services,Supplies and Services,10/06/2011,389222,"3,916.00",REVENUE,Criminal Records Bureau
Peterborough City Council,More than one Service Area Category,More than one Service Division,Supplies and Services,10/06/2011,389284,"6,669.60",REVENUE,AMTEC Consulting Plc
Peterborough City Council,Support Services,Support Services,Supplies and Services,10/06/2011,389285,"13,410.00",REVENUE,AMTEC Consulting Plc
Peterborough City Council,Deficit/(Surplus) on Trading Undertakings,Trading Account Surpluses & Deficits,Supplies and Services,10/06/2011,389286,"1,164.00",REVENUE,AMTEC Consulting Plc
Peterborough City Council,Deficit/(Surplus) on Trading Undertakings,Trading Account Surpluses & Deficits,Supplies and Services,10/06/2011,389287,"8,942.40",REVENUE,AMTEC Consulting Plc
Peterborough City Council,Central Services to the Public,Local Tax,Supplies and Services,10/06/2011,389288,"23,544.00",REVENUE,AMTEC Consulting Plc
Peterborough City Council,More than one Service Area Category,More than one Service Division,Supplies and Services,10/06/2011,389289,"16,324.80",REVENUE,AMTEC Consulting Plc
Peterborough City Council,Support Services,Support Services,Supplies and Services,10/06/2011,389368,"3,960.00",REVENUE,Royal Mail
Peterborough City Council,Capital,Capital,Capital Pending Update to BS,10/06/2011,389371,"48,084.13",CAPITAL,Lindum Group Ltd
Peterborough City Council,Capital,Capital,Capital Pending Update to BS,10/06/2011,389457,"111,631.02",CAPITAL,The K A Wing Group Ltd
Peterborough City Council,Children's & Education Services - Education,Non-School Funding,Supplies and Services,10/06/2011,389516,"1,684.32",REVENUE,Beeches Pre-School
Peterborough City Council,Children's & Education Services - Education,Non-School Funding,Supplies and Services,10/06/2011,389517,580.8,REVENUE,Happy Days Playgroup
Peterborough City Council,Children's & Education Services - Education,Non-School Funding,Supplies and Services,10/06/2011,389519,580.8,REVENUE,Jenny's Pre School Playgroup
Peterborough City Council,"Highways, Roads & Transport Services",Public Transport,Supplies and Services,10/06/2011,389542,"8,791.79",REVENUE,National Express Ltd
Peterborough City Council,More than one Service Area Category,More than one Service Division,More than one Expenses Type,10/06/2011,390017,"56,720.86",REVENUE,Enterprise Managed Services Limited
Peterborough City Council,Children's & Education Services - Education,Secondary,Premises,10/06/2011,390027,"3,390.07",REVENUE,Eastern Shires Purchasing Organisation
Peterborough City Council,Children's & Education Services - Education,Secondary,Premises,10/06/2011,390028,"8,817.78",REVENUE,Eastern Shires Purchasing Organisation
Peterborough City Council,Children's & Education Services - Education,Secondary,Premises,10/06/2011,390029,"5,987.49",REVENUE,Eastern Shires Purchasing Organisation
Peterborough City Council,Children's & Education Services - Education,Secondary,Premises,10/06/2011,390031,"6,135.16",REVENUE,Southern Electric
Peterborough City Council,Deficit/(Surplus) on Trading Undertakings,Trading Account Surpluses & Deficits,Transport,10/06/2011,390046,985,REVENUE,Apex Training Services
Peterborough City Council,"Cultural, Environmental and Planning Services",Community Development,Supplies and Services,10/06/2011,390050,500,REVENUE,Polish Arts & Culture Assoc East Anglia
Peterborough City Council,Capital,Capital,Capital Pending Update to BS,10/06/2011,390052,500,CAPITAL,Werrington Neighbourhood Watch
Peterborough City Council,More than one Service Area Category,More than one Service Division,Balance Sheet,10/06/2011,390053,"6,000.00",Balance Sheet,Eversheds LLP
Peterborough City Council,"Cultural, Environmental and Planning Services",Recreation & Sport,Premises,10/06/2011,390055,"1,136.12",REVENUE,Princebuild Limited
Peterborough City Council,"Cultural, Environmental and Planning Services",Agriculture,Premises,10/06/2011,390065,993.43,REVENUE,Princebuild Limited
Peterborough City Council,Children's & Education Services - Education,Non-School Funding,Premises,10/06/2011,390066,"5,874.00",REVENUE,T Clarke East Limited
Peterborough City Council,Deficit/(Surplus) on Trading Undertakings,Trading Account Surpluses & Deficits,Supplies and Services,10/06/2011,390074,666.34,REVENUE,Princebuild Limited
Peterborough City Council,Capital,Capital,Capital Pending Update to BS,10/06/2011,390076,"20,384.14",CAPITAL,National Grid Gas Plc
Peterborough City Council,"Highways, Roads & Transport Services",Street Lighting,Supplies and Services,10/06/2011,390085,528,REVENUE,UK Power Networks (operations) Ltd
Peterborough City Council,Children's & Education Services - Children's Social Care,Family Support Services,Employees,10/06/2011,390099,"1,544.40",REVENUE,Cambridgeshire County Council
Peterborough City Council,Capital,Capital,Capital Pending Update to BS,10/06/2011,390108,"9,911.47",CAPITAL,Princebuild Limited
Peterborough City Council,Children's & Education Services - Children's Social Care,Children Looked After,Supplies and Services - Transfer Payments,10/06/2011,390111,"12,900.00",REVENUE,MJ Childrens Services
Peterborough City Council,Children's & Education Services - Children's Social Care,Children Looked After,Supplies and Services - Transfer Payments,10/06/2011,390112,"11,700.00",REVENUE,MJ Childrens Services
Peterborough City Council,Children's & Education Services - Children's Social Care,Children Looked After,Supplies and Services - Transfer Payments,10/06/2011,390113,"2,357.14",REVENUE,MJ Childrens Services
Peterborough City Council,Capital,Capital,Capital Pending Update to BS,10/06/2011,390128,"2,475.18",CAPITAL,Portakabin Ltd
Peterborough City Council,More than one Service Area Category,More than one Service Division,More than one Expenses Type,10/06/2011,390134,"6,117.30","Mixture of Capital, Revenue and/or Balance Sheet",Retrofit UK Ltd
Peterborough City Council,More than one Service Area Category,More than one Service Division,More than one Expenses Type,10/06/2011,390135,"2,474.85","Mixture of Capital, Revenue and/or Balance Sheet",Retrofit UK Ltd
Peterborough City Council,More than one Service Area Category,More than one Service Division,More than one Expenses Type,10/06/2011,390137,"6,148.80","Mixture of Capital, Revenue and/or Balance Sheet",Retrofit UK Ltd
Peterborough City Council,More than one Service Area Category,More than one Service Division,More than one Expenses Type,10/06/2011,390138,"8,524.95","Mixture of Capital, Revenue and/or Balance Sheet",Retrofit UK Ltd
Peterborough City Council,Children's & Education Services - Education,Non-School Funding,Transport,10/06/2011,390139,818.4,REVENUE,3 Star Ambassador Taxis
Peterborough City Council,Children's & Education Services - Children's Social Care,Children Looked After,Transport,10/06/2011,390170,"1,998.00",REVENUE,Redacted Personal Data
Peterborough City Council,Children's & Education Services - Children's Social Care,Children Looked After,Transport,10/06/2011,390171,676.35,REVENUE,Redacted Personal Data
Peterborough City Council,Children's & Education Services - Children's Social Care,Children Looked After,Transport,10/06/2011,390172,"1,040.85",REVENUE,Redacted Personal Data
Peterborough City Council,Children's & Education Services - Children's Social Care,Children Looked After,Transport,10/06/2011,390173,"1,944.45",REVENUE,Redacted Personal Data
Peterborough City Council,Children's & Education Services - Children's Social Care,Children Looked After,More than one Expenses Type,10/06/2011,390175,"1,461.60",REVENUE,Redacted Personal Data
Peterborough City Council,More than one Service Area Category,More than one Service Division,More than one Expenses Type,10/06/2011,390201,"5,219.98","Mixture of Capital, Revenue and/or Balance Sheet",Bloom & Wake Ltd
Peterborough City Council,Children's & Education Services - Children's Social Care,Youth Justice,Supplies and Services,10/06/2011,390203,600,REVENUE,Royal Mail
Peterborough City Council,Support Services,Support Services,Premises,10/06/2011,390220,545.54,REVENUE,NB Real Estate
Peterborough City Council,"Cultural, Environmental and Planning Services",Waste Collection,Premises,10/06/2011,390230,"2,208.00",REVENUE,Dal-Rod
Peterborough City Council,More than one Service Area Category,More than one Service Division,More than one Expenses Type,10/06/2011,390286,659.68,REVENUE,Peterborough Registrars Office
Peterborough City Council,Children's & Education Services - Children's Social Care,Children Looked After,Supplies and Services - Transfer Payments,13/06/2011,387565,"14,142.90",REVENUE,Continuum Care & Educ. Group.
Peterborough City Council,"Cultural, Environmental and Planning Services","Cemetery, Crematorium & Mortuary Services",Supplies and Services,13/06/2011,387567,946.09,REVENUE,Scribes Ltd
Peterborough City Council,Capital,Capital,Capital Pending Update to BS,13/06/2011,387588,"274,194.00",CAPITAL,Capita Business Services Ltd
Peterborough City Council,Children's & Education Services - Children's Social Care,Other Children's & Families Services,Employees,13/06/2011,387596,"1,776.00",REVENUE,Medicare First
Peterborough City Council,Children's & Education Services - Education,Secondary,Employees,13/06/2011,387612,"2,296.80",REVENUE,Top Class Tutors
Peterborough City Council,"Cultural, Environmental and Planning Services",Community Development,Employees,13/06/2011,387666,"1,265.82",REVENUE,Anne Corder Recruitment
Peterborough City Council,Housing Services,Homelessness,Employees,13/06/2011,387670,604.97,REVENUE,Anne Corder Recruitment
Peterborough City Council,"Cultural, Environmental and Planning Services",Waste Collection,Supplies and Services,13/06/2011,387775,658.45,REVENUE,Waste Recycling Ltd
Peterborough City Council,"Cultural, Environmental and Planning Services",Waste Collection,Supplies and Services,13/06/2011,387776,"11,894.05",REVENUE,Waste Recycling Ltd
Peterborough City Council,"Cultural, Environmental and Planning Services",Waste Collection,Supplies and Services,13/06/2011,387777,"3,557.36",REVENUE,Waste Recycling Ltd
Peterborough City Council,"Cultural, Environmental and Planning Services",Waste Collection,Supplies and Services,13/06/2011,387778,"285,634.95",REVENUE,Waste Recycling Ltd
Peterborough City Council,"Cultural, Environmental and Planning Services",Waste Collection,Supplies and Services,13/06/2011,388177,"4,890.03",REVENUE,Waste Recycling Ltd
Peterborough City Council,"Cultural, Environmental and Planning Services",Waste Collection,Supplies and Services,13/06/2011,388178,"11,716.71",REVENUE,Waste Recycling Ltd
Peterborough City Council,Children's & Education Services - Children's Social Care,Other Children's & Families Services,Employees,13/06/2011,388180,"1,776.00",REVENUE,Blue Group International Ltd
Peterborough City Council,"Cultural, Environmental and Planning Services",Community Development,Supplies and Services,13/06/2011,388182,671.55,REVENUE,Triple SSS Limited
Peterborough City Council,Children's & Education Services - Children's Social Care,Other Children's & Families Services,Employees,13/06/2011,388203,"1,658.78",REVENUE,Blue Group International Ltd
Peterborough City Council,Deficit/(Surplus) on Trading Undertakings,Trading Account Surpluses & Deficits,Supplies and Services,13/06/2011,388238,"2,760.00",REVENUE,Pimseal Ltd
Peterborough City Council,"Cultural, Environmental and Planning Services",Economic Development,Employees,13/06/2011,388418,"2,270.00",REVENUE,NACRO
Peterborough City Council,More than one Service Area Category,More than one Service Division,Supplies and Services,13/06/2011,388632,"12,345.49",REVENUE,Loomis UK Ltd
Peterborough City Council,Deficit/(Surplus) on Trading Undertakings,Trading Account Surpluses & Deficits,Premises,13/06/2011,388679,"5,553.61",REVENUE,Princebuild Limited
Peterborough City Council,"Cultural, Environmental and Planning Services",Open Spaces,Premises,13/06/2011,388701,962.54,REVENUE,Princebuild Limited
Peterborough City Council,"Highways, Roads & Transport Services",Street Lighting,Supplies and Services,13/06/2011,388726,544.8,REVENUE,UK Power Networks (operations) Ltd
Peterborough City Council,"Highways, Roads & Transport Services",Street Lighting,Supplies and Services,13/06/2011,388727,932.4,REVENUE,UK Power Networks (operations) Ltd
Peterborough City Council,"Highways, Roads & Transport Services",Street Lighting,Supplies and Services,13/06/2011,388728,775.2,REVENUE,UK Power Networks (operations) Ltd
Peterborough City Council,"Highways, Roads & Transport Services",Street Lighting,Supplies and Services,13/06/2011,388729,818.4,REVENUE,UK Power Networks (operations) Ltd
Peterborough City Council,Capital,Capital,Capital Pending Update to BS,13/06/2011,388730,"4,032.00",CAPITAL,UK Power Networks (operations) Ltd
Peterborough City Council,"Highways, Roads & Transport Services",Street Lighting,Supplies and Services,13/06/2011,388732,"1,089.60",REVENUE,UK Power Networks (operations) Ltd
Peterborough City Council,"Highways, Roads & Transport Services",Street Lighting,Supplies and Services,13/06/2011,388734,"1,864.80",REVENUE,UK Power Networks (operations) Ltd
Peterborough City Council,Central Services to the Public,Elections,Supplies and Services,13/06/2011,388806,"6,428.40",REVENUE,Print Image Network Ltd
Peterborough City Council,Central Services to the Public,Elections,Supplies and Services,13/06/2011,388860,"1,098.60",REVENUE,Print Image Network Ltd
Peterborough City Council,Deficit/(Surplus) on Trading Undertakings,Trading Account Surpluses & Deficits,Supplies and Services,13/06/2011,389059,"2,025.42",REVENUE,RMS Engineers LTD
Peterborough City Council,More than one Service Area Category,More than one Service Division,Supplies and Services,13/06/2011,389417,"2,297.56",REVENUE,TNT Post Midlands Ltd
Peterborough City Council,Children's & Education Services - Education,Non-School Funding,Supplies and Services,13/06/2011,389472,600,REVENUE,Rise & Shine Day Nursery
Peterborough City Council,Support Services,Support Services,Premises,13/06/2011,389483,"1,413.66",REVENUE,Zurich Insurance Company
Peterborough City Council,Children's & Education Services - Education,Non-School Funding,Supplies and Services,13/06/2011,389518,"1,064.80",REVENUE,Husaini Pre-School
Peterborough City Council,Children's & Education Services - Education,Non-School Funding,Supplies and Services,13/06/2011,389520,968,REVENUE,Little Stars Day Nursery
Peterborough City Council,Children's & Education Services - Education,Non-School Funding,Supplies and Services,13/06/2011,389522,"2,284.48",REVENUE,Family Action
Peterborough City Council,Central Services to the Public,Elections,Supplies and Services,13/06/2011,390084,"7,514.85",REVENUE,Royal Mail
Peterborough City Council,Support Services,Support Services,More than one Expenses Type,13/06/2011,390118,"3,693.54",REVENUE,Debenham Tie Leung
Peterborough City Council,More than one Service Area Category,More than one Service Division,Transport,13/06/2011,390163,912,REVENUE,R T Enterprises Ltd T/A Royal Taxis
Peterborough City Council,Capital,Capital,Capital Pending Update to BS,13/06/2011,390202,"45,810.47",CAPITAL,Benchmark Contracts Ltd
Peterborough City Council,"Highways, Roads & Transport Services",Public Transport,Supplies and Services,13/06/2011,390229,"155,133.67",REVENUE,Stagecoach in Peterborough
Peterborough City Council,Deficit/(Surplus) on Trading Undertakings,Trading Account Surpluses & Deficits,Premises,13/06/2011,390244,600,REVENUE,Nene Construction Management Servs Ltd
Peterborough City Council,Housing Services,Homelessness,Supplies and Services,13/06/2011,390449,600,REVENUE,Peterborough Citizens Advice Bureau
Peterborough City Council,Support Services,Support Services & Management Costs,Employees,13/06/2011,390454,650,REVENUE,The Open University
Peterborough City Council,Capital,Capital,Capital Pending Update to BS,15/06/2011,362258,810,CAPITAL,Zipporah Limited
Peterborough City Council,Deficit/(Surplus) on Trading Undertakings,Trading Account Surpluses & Deficits,Transport,15/06/2011,373808,"8,869.25",REVENUE,Applied Sweepers Group Leasing Ltd
Peterborough City Council,Children's & Education Services - Children's Social Care,Children Looked After,Supplies and Services,15/06/2011,375475,593,REVENUE,Byrd Associates Ltd
Peterborough City Council,"Cultural, Environmental and Planning Services",Economic Development,Employees,15/06/2011,378338,"1,560.00",REVENUE,Mymar Training Ltd
Peterborough City Council,Children's & Education Services - Children's Social Care,Other Children's & Families Services,Third Party Payments,15/06/2011,382705,"13,750.00",REVENUE,Bridgegate Drug Services
Peterborough City Council,Housing Services,Private Sector Housing Renewal,Supplies and Services,15/06/2011,384130,"1,377.00",REVENUE,P F S Builders & Contractors
Peterborough City Council,Deficit/(Surplus) on Trading Undertakings,Trading Account Surpluses & Deficits,Transport,15/06/2011,384735,"6,604.61",REVENUE,Applied Sweepers Group Leasing Ltd
Peterborough City Council,"Cultural, Environmental and Planning Services",Regulatory services,Supplies and Services,15/06/2011,385261,"1,753.74",REVENUE,Tejaycey Boarding Kennels and Cattery
Peterborough City Council,Housing Services,Housing Benefits,Employees,15/06/2011,385553,"1,248.00",REVENUE,The Synergy Group
Peterborough City Council,Housing Services,Housing Benefits,Employees,15/06/2011,386221,"1,154.40",REVENUE,The Synergy Group
Peterborough City Council,More than one Service Area Category,More than one Service Division,Supplies and Services,15/06/2011,386586,612.5,REVENUE,DA Rosalia Hotel
Peterborough City Council,Central Services to the Public,Registrar,Premises,15/06/2011,387305,"3,549.00",REVENUE,The Lawns(Peterborough) Ltd
Peterborough City Council,Central Services to the Public,Registrar,Premises,15/06/2011,387307,630,REVENUE,The Lawns(Peterborough) Ltd
Peterborough City Council,Central Services to the Public,Registrar,Premises,15/06/2011,387311,"7,920.00",REVENUE,The Lawns(Peterborough) Ltd
Peterborough City Council,Central Services to the Public,Registrar,Premises,15/06/2011,387313,"2,465.00",REVENUE,The Lawns(Peterborough) Ltd
Peterborough City Council,Corporate & Democratic Core,Democratic Representation & Managemetn,Supplies and Services,15/06/2011,387326,768,REVENUE,M & B Caterers
Peterborough City Council,Housing Services,Private Sector Housing Renewal,Supplies and Services,15/06/2011,387329,918,REVENUE,Fletton Electrics Ltd
Peterborough City Council,"Cultural, Environmental and Planning Services","Cemetery, Crematorium & Mortuary Services",Supplies and Services,15/06/2011,387465,912,REVENUE,Anglia Co-operative Funerals
Peterborough City Council,"Highways, Roads & Transport Services","Transport planning, policy and strategy",Supplies and Services,15/06/2011,387556,661.5,REVENUE,Johnston Press Midlands Division
Peterborough City Council,Housing Services,Private Sector Housing Renewal,Supplies and Services,15/06/2011,387616,"2,222.75",REVENUE,Deprez Developments
Peterborough City Council,Children's & Education Services - Children's Social Care,Other Children's & Families Services,Third Party Payments,15/06/2011,387633,"8,655.63",REVENUE,Bridgegate Drug Services
Peterborough City Council,Children's & Education Services - Children's Social Care,Other Children's & Families Services,Third Party Payments,15/06/2011,387636,"8,655.63",REVENUE,Bridgegate Drug Services
Peterborough City Council,Children's & Education Services - Children's Social Care,More than one Service Division,Employees,15/06/2011,387639,"2,025.00",REVENUE,Care Recruitment UK Ltd
Peterborough City Council,Children's & Education Services - Children's Social Care,Family Support Services,Supplies and Services,15/06/2011,387659,930.79,REVENUE,Konica Minolta Bus.Sol. East Ltd
Peterborough City Council,Court Services,Coroner's Court Service,Supplies and Services,15/06/2011,387664,"1,222.92",REVENUE,Serco Ltd
Peterborough City Council,Children's & Education Services - Education,Non-School Funding,Supplies and Services,15/06/2011,387674,"1,000.00",REVENUE,PBD
Peterborough City Council,Children's & Education Services - Children's Social Care,Other Children's & Families Services,Employees,15/06/2011,387676,"1,731.60",REVENUE,Evergood Associates
Peterborough City Council,Children's & Education Services - Children's Social Care,Service Strategy,Supplies and Services,15/06/2011,388199,520.38,REVENUE,Terrier Management Services
Peterborough City Council,Children's & Education Services - Children's Social Care,Family Support Services,Premises,15/06/2011,388212,728.46,REVENUE,PAM Recruitment Ltd
Peterborough City Council,Housing Services,Private Sector Housing Renewal,Supplies and Services,15/06/2011,388225,"1,037.00",REVENUE,Nightingale Services
Peterborough City Council,Children's & Education Services - Children's Social Care,Children Looked After,Supplies and Services - Transfer Payments,15/06/2011,388248,"5,500.00",REVENUE,TulipCare
Peterborough City Council,"Highways, Roads & Transport Services",Parking Services,Supplies and Services,15/06/2011,388302,768,REVENUE,Parkeon Transit Ltd
Peterborough City Council,Children's & Education Services - Children's Social Care,Service Strategy,Supplies and Services,15/06/2011,388303,593.48,REVENUE,Redacted Personal Data
Peterborough City Council,"Cultural, Environmental and Planning Services",Development Control,Supplies and Services,15/06/2011,388313,735,REVENUE,Johnston Press Midlands Division
Peterborough City Council,Children's & Education Services - Education,Non-School Funding,Supplies and Services,15/06/2011,388343,"41,230.44",REVENUE,Capita Absence Management Services Ltd
Peterborough City Council,"Highways, Roads & Transport Services","Transport planning, policy and strategy",Supplies and Services,15/06/2011,388365,636,REVENUE,Truvelo (UK) Ltd
Peterborough City Council,"Highways, Roads & Transport Services","Environmental, Safety & Routine Maintenance",Supplies and Services,15/06/2011,388369,"3,265.02",REVENUE,W D M Ltd
Peterborough City Council,Children's & Education Services - Children's Social Care,Family Support Services,Third Party Payments,15/06/2011,388372,"5,482.80",REVENUE,Pre-School Learning Alliance
Peterborough City Council,"Cultural, Environmental and Planning Services",Economic Development,Employees,15/06/2011,388375,"1,323.90",REVENUE,Randstad CPE
Peterborough City Council,"Highways, Roads & Transport Services","Transport planning, policy and strategy",Employees,15/06/2011,388376,"1,386.00",REVENUE,Randstad CPE
Peterborough City Council,Children's & Education Services - Education,Non-School Funding,Supplies and Services,15/06/2011,388421,"1,190.00",REVENUE,NACRO
Peterborough City Council,"Highways, Roads & Transport Services","Transport planning, policy and strategy",Employees,15/06/2011,388428,"1,068.00",REVENUE,Hays Specialist Recruitment Ltd
Peterborough City Council,"Cultural, Environmental and Planning Services",Economic Development,Premises,15/06/2011,388453,770.64,REVENUE,Equinox (Peterborough) Ltd
Peterborough City Council,Children's & Education Services - Children's Social Care,Other Children's & Families Services,Third Party Payments,15/06/2011,388473,"35,000.00",REVENUE,The National Autistic Society
Peterborough City Council,Deficit/(Surplus) on Trading Undertakings,Trading Account Surpluses & Deficits,Supplies and Services,15/06/2011,388504,"1,114.80",REVENUE,M O 8 Specialities Ltd
Peterborough City Council,Support Services,Support Services,Supplies and Services,15/06/2011,388550,"1,386.00",REVENUE,Hays Specialist Recruitment Ltd
Peterborough City Council,"Cultural, Environmental and Planning Services",Economic Development,More than one Expenses Type,15/06/2011,388551,"1,316.71",REVENUE,Hays Specialist Recruitment Ltd
Peterborough City Council,"Cultural, Environmental and Planning Services",Economic Development,Employees,15/06/2011,388552,"1,846.80",REVENUE,Hays Specialist Recruitment Ltd
Peterborough City Council,Support Services,Support Services,Supplies and Services,15/06/2011,388560,"3,000.00",REVENUE,PricewaterhouseCoopers LLP
Peterborough City Council,Housing Services,Housing Benefits,Employees,15/06/2011,388576,672,REVENUE,Zebra Business Services Limited
Peterborough City Council,Capital,Capital,Capital Pending Update to BS,15/06/2011,388604,"5,599.20",CAPITAL,Antomic Woodworking Ltd
Peterborough City Council,"Highways, Roads & Transport Services",Parking Services,Supplies and Services,15/06/2011,388622,749.7,REVENUE,Johnston Press Midlands Division
Peterborough City Council,Support Services,Support Services,Premises,15/06/2011,388682,686.67,REVENUE,L Garfield (Builders) Ltd
Peterborough City Council,Deficit/(Surplus) on Trading Undertakings,Trading Account Surpluses & Deficits,Premises,15/06/2011,388697,665.02,REVENUE,Princebuild Limited
Peterborough City Council,More than one Service Area Category,More than one Service Division,More than one Expenses Type,15/06/2011,388743,"2,062.97",REVENUE,Hays Specialist Recruitment Ltd
Peterborough City Council,Children's & Education Services - Children's Social Care,Other Children's & Families Services,Supplies and Services,15/06/2011,388795,"1,481.90",REVENUE,CINTRA Ltd
Peterborough City Council,Deficit/(Surplus) on Trading Undertakings,Trading Account Surpluses & Deficits,Supplies and Services,15/06/2011,388876,665.7,REVENUE,Princebuild Limited
Peterborough City Council,Children's & Education Services - Children's Social Care,Youth Justice,Transport,15/06/2011,388920,632.83,REVENUE,Reliance
Peterborough City Council,Support Services,Support Services,More than one Expenses Type,15/06/2011,388921,"28,546.63",REVENUE,NB Real Estate
Peterborough City Council,Support Services,Support Services,Premises,15/06/2011,388923,"34,830.78",REVENUE,NB Real Estate
Peterborough City Council,Support Services,Support Services,Premises,15/06/2011,388924,"35,982.28",REVENUE,NB Real Estate
Peterborough City Council,Children's & Education Services - Education,Secondary,Employees,15/06/2011,389070,993.6,REVENUE,Mana Resourcing Ltd
Peterborough City Council,Children's & Education Services - Education,Non-School Funding,Employees,15/06/2011,389073,867.6,REVENUE,Mana Resourcing Ltd
Peterborough City Council,Capital,Capital,Capital Pending Update to BS,15/06/2011,389074,"1,595.16",CAPITAL,L Garfield (Builders) Ltd
Peterborough City Council,Children's & Education Services - Education,Non-School Funding,Supplies and Services,15/06/2011,389123,"3,699.20",REVENUE,Leicestershire County Council
Peterborough City Council,Children's & Education Services - Education,Non-School Funding,Supplies and Services,15/06/2011,389124,"7,514.00",REVENUE,Leicestershire County Council
Peterborough City Council,Deficit/(Surplus) on Trading Undertakings,Trading Account Surpluses & Deficits,Supplies and Services,15/06/2011,389159,"12,264.12",REVENUE,Premier Decorators UK Ltd
Peterborough City Council,Housing Services,Housing Benefits,Employees,15/06/2011,389325,"4,726.66",REVENUE,The Synergy Group
Peterborough City Council,More than one Service Area Category,More than one Service Division,More than one Expenses Type,15/06/2011,389327,"3,931.80",REVENUE,The Synergy Group
Peterborough City Council,More than one Service Area Category,More than one Service Division,Supplies and Services,15/06/2011,389425,"1,369.83",REVENUE,TNT Post Midlands Ltd
Peterborough City Council,Support Services,Support Services,Supplies and Services,15/06/2011,389427,666,REVENUE,Key People Ltd
Peterborough City Council,Support Services,Support Services,Supplies and Services,15/06/2011,389428,666,REVENUE,Key People Ltd
Peterborough City Council,More than one Service Area Category,More than one Service Division,Supplies and Services,15/06/2011,389447,"8,948.50",REVENUE,Oakdale Primary School
Peterborough City Council,Corporate & Democratic Core,Corporate Management,Supplies and Services,15/06/2011,389525,"2,224.45",REVENUE,Barnack C of E Primary School
Peterborough City Council,Capital,Capital,Capital Pending Update to BS,15/06/2011,389546,"4,916.00",CAPITAL,Burges Salmon LLP
Peterborough City Council,Children's & Education Services - Children's Social Care,Family Support Services,Supplies and Services,15/06/2011,390011,"2,314.52",REVENUE,Konica Minolta Bus.Sol. East Ltd
Peterborough City Council,More than one Service Area Category,More than one Service Division,More than one Expenses Type,15/06/2011,390015,"1,134.94",REVENUE,Peterborough City Council
Peterborough City Council,More than one Service Area Category,More than one Service Division,Balance Sheet,15/06/2011,390054,"2,016.00",Balance Sheet,Dept for Work & Pensions
Peterborough City Council,Deficit/(Surplus) on Trading Undertakings,Trading Account Surpluses & Deficits,Premises,15/06/2011,390177,"3,620.54",REVENUE,Princebuild Limited
Peterborough City Council,"Cultural, Environmental and Planning Services",Economic Development,Supplies and Services,15/06/2011,390181,"5,250.00",REVENUE,Opportunity Peterborough
Peterborough City Council,Deficit/(Surplus) on Trading Undertakings,Trading Account Surpluses & Deficits,Premises,15/06/2011,390192,"39,000.00",REVENUE,Nuffield College Rents A/C
Peterborough City Council,Central Services to the Public,Elections,Supplies and Services,15/06/2011,390196,"1,372.34",REVENUE,Royal Mail
Peterborough City Council,Children's & Education Services - Education,Secondary,Supplies and Services,15/06/2011,390204,"1,251.13",REVENUE,IIC by Education (P'boro) Ltd
Peterborough City Council,Support Services,Support Services,Premises,15/06/2011,390207,"8,398.80",REVENUE,Zurich Insurance Company
Peterborough City Council,Housing Services,Private Sector Housing Renewal,Supplies and Services,15/06/2011,390214,"7,373.54",REVENUE,Casbon Building Services
Peterborough City Council,Housing Services,Private Sector Housing Renewal,Supplies and Services,15/06/2011,390217,"2,736.00",REVENUE,Casbon Building Services
Peterborough City Council,"Highways, Roads & Transport Services",Public Transport,Supplies and Services,15/06/2011,390227,"198,548.31",REVENUE,Stagecoach in Peterborough
Peterborough City Council,Central Services to the Public,Elections,Supplies and Services,15/06/2011,390231,"1,790.77",REVENUE,Royal Mail
Peterborough City Council,Central Services to the Public,Elections,Supplies and Services,15/06/2011,390232,"1,288.93",REVENUE,Royal Mail
Peterborough City Council,Central Services to the Public,Elections,Supplies and Services,15/06/2011,390233,"2,267.16",REVENUE,Royal Mail
Peterborough City Council,Support Services,Support Services,Premises,15/06/2011,390257,"30,000.00",REVENUE,Savills L&P Ltd
Peterborough City Council,Deficit/(Surplus) on Trading Undertakings,Trading Account Surpluses & Deficits,Transport,15/06/2011,390263,584.57,REVENUE,Northgate Vehicle Hire (East Anglia) Ltd
Peterborough City Council,More than one Service Area Category,More than one Service Division,More than one Expenses Type,15/06/2011,390268,"10,646.40","Mixture of Capital, Revenue and/or Balance Sheet",M J Greaves
Peterborough City Council,Central Services to the Public,Elections,Supplies and Services,15/06/2011,390271,999,REVENUE,Print Image Network Ltd
Peterborough City Council,Central Services to the Public,Elections,Supplies and Services,15/06/2011,390272,"1,163.30",REVENUE,Print Image Network Ltd
Peterborough City Council,Central Services to the Public,Elections,Supplies and Services,15/06/2011,390274,"4,603.63",REVENUE,Print Image Network Ltd
Peterborough City Council,Central Services to the Public,Elections,Supplies and Services,15/06/2011,390276,"21,672.09",REVENUE,Print Image Network Ltd
Peterborough City Council,Central Services to the Public,Elections,Supplies and Services,15/06/2011,390277,"1,059.20",REVENUE,Print Image Network Ltd
Peterborough City Council,Central Services to the Public,Elections,Supplies and Services,15/06/2011,390279,929.76,REVENUE,Print Image Network Ltd
Peterborough City Council,Central Services to the Public,Elections,Supplies and Services,15/06/2011,390282,"8,287.93",REVENUE,Print Image Network Ltd
Peterborough City Council,Central Services to the Public,Elections,Supplies and Services,15/06/2011,390283,"1,416.60",REVENUE,Print Image Network Ltd
Peterborough City Council,Central Services to the Public,Elections,Supplies and Services,15/06/2011,390284,"1,541.45",REVENUE,Print Image Network Ltd
Peterborough City Council,Central Services to the Public,Elections,Supplies and Services,15/06/2011,390285,"1,711.62",REVENUE,Print Image Network Ltd
Peterborough City Council,Deficit/(Surplus) on Trading Undertakings,Trading Account Surpluses & Deficits,Employees,15/06/2011,390289,"122,124.08",REVENUE,Enterprise Managed Services Limited
Peterborough City Council,"Highways, Roads & Transport Services",Street Lighting,Supplies and Services,15/06/2011,390341,"135,912.00",REVENUE,Volker Highways MEWS Ltd
Peterborough City Council,"Highways, Roads & Transport Services",Street Lighting,Supplies and Services,15/06/2011,390373,"14,184.00",REVENUE,Volker Highways MEWS Ltd
Peterborough City Council,Capital,Capital,Capital Pending Update to BS,15/06/2011,390380,"18,600.00",CAPITAL,Ringway Infrastructure Services
Peterborough City Council,Support Services,Support Services,Premises,15/06/2011,390425,"47,150.03",REVENUE,Zurich Insurance Company
Peterborough City Council,Children's & Education Services - Children's Social Care,Children Looked After,Supplies and Services - Transfer Payments,15/06/2011,390434,"9,247.08",REVENUE,Lovell's Hall
Peterborough City Council,Children's & Education Services - Education,Non-School Funding,Supplies and Services,15/06/2011,390435,"1,224.00",REVENUE,The Award Scheme Ltd
Peterborough City Council,Support Services,Support Services,Premises,15/06/2011,390467,"48,815.62",REVENUE,Zurich Insurance Company
Peterborough City Council,Support Services,Support Services,Premises,15/06/2011,390470,"9,149.40",REVENUE,Zurich Insurance Company
Peterborough City Council,Support Services,Support Services,Premises,15/06/2011,390475,"46,782.02",REVENUE,Zurich Insurance Company
Peterborough City Council,Children's & Education Services - Education,All Schools - apportion across sectors,Third Party Payments,15/06/2011,390476,"22,000.00",REVENUE,Bridgegate Drug Services
Peterborough City Council,Children's & Education Services - Education,All Schools - apportion across sectors,Third Party Payments,15/06/2011,390494,"2,500.00",REVENUE,Bridgegate Drug Services
Peterborough City Council,Children's & Education Services - Education,All Schools - apportion across sectors,Third Party Payments,15/06/2011,390495,"8,500.00",REVENUE,Bridgegate Drug Services
Peterborough City Council,Support Services,Support Services,Premises,15/06/2011,390496,"562,417.51",REVENUE,Zurich Insurance Company
Peterborough City Council,Children's & Education Services - Education,Secondary,Employees,15/06/2011,390499,"1,644.50",REVENUE,Mana Resourcing Ltd
Peterborough City Council,Children's & Education Services - Education,Secondary,Employees,15/06/2011,390500,"1,912.38",REVENUE,Mana Resourcing Ltd
Peterborough City Council,Children's & Education Services - Children's Social Care,Children Looked After,Supplies and Services - Transfer Payments,15/06/2011,390506,"10,639.20",REVENUE,Continuum Care & Educ. Group.
Peterborough City Council,Children's & Education Services - Children's Social Care,Family Support Services,Third Party Payments,15/06/2011,390507,"5,802.85",REVENUE,Family Action
Peterborough City Council,More than one Service Area Category,More than one Service Division,Balance Sheet,15/06/2011,390508,758.53,Balance Sheet,Rossendales C B Ltd
Peterborough City Council,Support Services,Support Services,Supplies and Services,15/06/2011,390552,656.83,REVENUE,Weightmans LLP
Peterborough City Council,Support Services,Support Services,Supplies and Services,15/06/2011,390553,608.4,REVENUE,Weightmans LLP
Peterborough City Council,Housing Services,Homelessness,Supplies and Services,15/06/2011,390592,"1,500.00",REVENUE,Cross Keys Homes
Peterborough City Council,Housing Services,Homelessness,Supplies and Services,15/06/2011,390600,"69,626.62",REVENUE,Cross Keys Homes
Peterborough City Council,More than one Service Area Category,More than one Service Division,More than one Expenses Type,15/06/2011,390608,"1,540.00","Mixture of Capital, Revenue and/or Balance Sheet",Greyfriars Carpets Ltd
Peterborough City Council,Children's & Education Services - Education,Non-School Funding,Supplies and Services,15/06/2011,390609,512,REVENUE,Assessment & Qualifications Alliance
Peterborough City Council,More than one Service Area Category,More than one Service Division,More than one Expenses Type,15/06/2011,390610,"1,195.00","Mixture of Capital, Revenue and/or Balance Sheet",Ransome Engineering Services Ltd
Peterborough City Council,More than one Service Area Category,More than one Service Division,More than one Expenses Type,15/06/2011,390612,"3,158.70","Mixture of Capital, Revenue and/or Balance Sheet",Total Hygiene Ltd
Peterborough City Council,More than one Service Area Category,More than one Service Division,More than one Expenses Type,15/06/2011,390614,"2,136.68","Mixture of Capital, Revenue and/or Balance Sheet",S R K Engineering
Peterborough City Council,More than one Service Area Category,More than one Service Division,More than one Expenses Type,15/06/2011,390615,"11,959.00","Mixture of Capital, Revenue and/or Balance Sheet",F A M Building Contractors
Peterborough City Council,More than one Service Area Category,More than one Service Division,More than one Expenses Type,15/06/2011,390617,"5,527.20","Mixture of Capital, Revenue and/or Balance Sheet",Warics Ltd
Peterborough City Council,More than one Service Area Category,More than one Service Division,More than one Expenses Type,15/06/2011,390618,"5,964.00","Mixture of Capital, Revenue and/or Balance Sheet",M J Greaves
Peterborough City Council,More than one Service Area Category,More than one Service Division,More than one Expenses Type,15/06/2011,390619,"8,032.50","Mixture of Capital, Revenue and/or Balance Sheet",Thermowall Ltd
Peterborough City Council,More than one Service Area Category,More than one Service Division,More than one Expenses Type,15/06/2011,390622,"1,060.00","Mixture of Capital, Revenue and/or Balance Sheet",Dolphin Mobility East Midlands Ltd
Peterborough City Council,Parish Council Precepts,Precepts & Levies,More than one Expenses Type,15/06/2011,390626,"27,500.00",REVENUE,Wittering Parish Council
Peterborough City Council,More than one Service Area Category,More than one Service Division,More than one Expenses Type,15/06/2011,390628,"4,095.00","Mixture of Capital, Revenue and/or Balance Sheet",The Mobility Equipment Company
Peterborough City Council,More than one Service Area Category,More than one Service Division,More than one Expenses Type,15/06/2011,390635,"3,735.00","Mixture of Capital, Revenue and/or Balance Sheet",Obam Domestic Lift Services Ltd
Peterborough City Council,More than one Service Area Category,More than one Service Division,More than one Expenses Type,15/06/2011,390636,"4,119.00","Mixture of Capital, Revenue and/or Balance Sheet",Burmor Construction
Peterborough City Council,More than one Service Area Category,More than one Service Division,More than one Expenses Type,15/06/2011,390637,"4,246.20","Mixture of Capital, Revenue and/or Balance Sheet",Rawheat Heating & Plumbing Eng.
Peterborough City Council,Children's & Education Services - Children's Social Care,More than one Service Division,More than one Expenses Type,15/06/2011,390638,"1,041.21",REVENUE,Children & Families Looked After Children
Peterborough City Council,Children's & Education Services - Education,Non-School Funding,Supplies and Services,15/06/2011,390640,"1,064.80",REVENUE,Kindercare Pre-School Ltd
Peterborough City Council,More than one Service Area Category,More than one Service Division,Balance Sheet,15/06/2011,390644,"5,853.92",Balance Sheet,HM Revenues & Customs
Peterborough City Council,More than one Service Area Category,More than one Service Division,Balance Sheet,15/06/2011,390645,"12,936.64",Balance Sheet,HM Revenues & Customs
Peterborough City Council,More than one Service Area Category,More than one Service Division,Balance Sheet,15/06/2011,390646,"1,602,548.27",Balance Sheet,HM Revenues & Customs
Peterborough City Council,More than one Service Area Category,More than one Service Division,Balance Sheet,15/06/2011,390647,"131,803.76",Balance Sheet,HM Revenues & Customs
Peterborough City Council,More than one Service Area Category,More than one Service Division,Balance Sheet,15/06/2011,390648,"4,555.63",Balance Sheet,HM Revenues & Customs
Peterborough City Council,More than one Service Area Category,More than one Service Division,More than one Expenses Type,15/06/2011,390654,"1,559.12",REVENUE,Peterborough City Council
Peterborough City Council,Deficit/(Surplus) on Trading Undertakings,Trading Account Surpluses & Deficits,Transport,15/06/2011,390686,"-8,869.25",REVENUE,Applied Sweepers Group Leasing Ltd
Peterborough City Council,Children's & Education Services - Children's Social Care,Children Looked After,Supplies and Services - Transfer Payments,15/06/2011,390690,"9,247.08",REVENUE,Lovell's Hall
Peterborough City Council,More than one Service Area Category,More than one Service Division,Balance Sheet,15/06/2011,390693,"651,573.29",Balance Sheet,Cambridgeshire County Council
Peterborough City Council,More than one Service Area Category,More than one Service Division,Balance Sheet,15/06/2011,390694,"242,485.32",Balance Sheet,Cambridgeshire County Council
Peterborough City Council,More than one Service Area Category,More than one Service Division,Balance Sheet,15/06/2011,390695,"3,419.17",Balance Sheet,Cambridgeshire County Council
Peterborough City Council,More than one Service Area Category,More than one Service Division,Balance Sheet,15/06/2011,390697,"1,102.92",Balance Sheet,Cambridgeshire County Council
Peterborough City Council,Support Services,Support Services,Supplies and Services,17/06/2011,367629,"1,149.78",REVENUE,CIPFA
Peterborough City Council,Support Services,Support Services,Supplies and Services,17/06/2011,368117,"1,756.63",REVENUE,CIPFA
Peterborough City Council,"Cultural, Environmental and Planning Services",Waste Collection,Supplies and Services,17/06/2011,376527,"15,129.71",REVENUE,Organic Recycling Ltd
Peterborough City Council,Capital,Capital,Capital Pending Update to BS,17/06/2011,380574,"17,277.11",CAPITAL,Clearview Traffic Group Ltd
Peterborough City Council,Children's & Education Services - Children's Social Care,Family Support Services,Premises,17/06/2011,384647,769.74,REVENUE,Ideal Cleaning Services
Peterborough City Council,More than one Service Area Category,More than one Service Division,Supplies and Services,17/06/2011,384705,666,REVENUE,BusinessWatch UK Security Services Ltd
Peterborough City Council,Children's & Education Services - Children's Social Care,Children Looked After,Supplies and Services - Transfer Payments,17/06/2011,384723,"6,317.18",REVENUE,Key2
Peterborough City Council,More than one Service Area Category,More than one Service Division,Balance Sheet,17/06/2011,386553,"1,526.41",Balance Sheet,Peterborough Client Monies
Peterborough City Council,Children's & Education Services - Children's Social Care,Support Services & Management Costs,Supplies and Services,17/06/2011,386558,"-2,000.00",REVENUE,Redacted Personal Data
Peterborough City Council,Deficit/(Surplus) on Trading Undertakings,Trading Account Surpluses & Deficits,Supplies and Services,17/06/2011,386674,"10,082.10",REVENUE,The K A Wing Group Ltd
Peterborough City Council,Deficit/(Surplus) on Trading Undertakings,Trading Account Surpluses & Deficits,Supplies and Services,17/06/2011,386675,"8,416.60",REVENUE,The K A Wing Group Ltd
Peterborough City Council,More than one Service Area Category,More than one Service Division,Employees,17/06/2011,388176,525.7,REVENUE,Anne Corder Recruitment
Peterborough City Council,Children's & Education Services - Education,Non-School Funding,Supplies and Services,17/06/2011,388379,"4,550.00",REVENUE,On Track Education Services Ltd
Peterborough City Council,Children's & Education Services - Education,Non-School Funding,Supplies and Services,17/06/2011,388602,810,REVENUE,Redacted Personal Data
Peterborough City Council,Housing Services,Homelessness,Supplies and Services,17/06/2011,388613,943.71,REVENUE,Euro RSCG Riley Ltd
Peterborough City Council,Children's & Education Services - Education,Non-School Funding,Supplies and Services,17/06/2011,388693,502.8,REVENUE,Cascaid Ltd
Peterborough City Council,Children's & Education Services - Education,Primary,Employees,17/06/2011,388712,500,REVENUE,Cambridgeshire County Council
Peterborough City Council,Support Services,Support Services,Premises,17/06/2011,388844,"1,762.78",REVENUE,Zurich Insurance Company
Peterborough City Council,More than one Service Area Category,More than one Service Division,More than one Expenses Type,17/06/2011,389426,"14,981.48","Mixture of Capital, Revenue and/or Balance Sheet",Ringway Infrastructure Services
Peterborough City Council,More than one Service Area Category,More than one Service Division,Supplies and Services,17/06/2011,389524,"10,000.00",REVENUE,Eyrescroft Primary School
Peterborough City Council,More than one Service Area Category,More than one Service Division,Transport,17/06/2011,390165,654,REVENUE,R T Enterprises Ltd T/A Royal Taxis
Peterborough City Council,More than one Service Area Category,More than one Service Division,More than one Expenses Type,17/06/2011,390258,"13,518.20","Mixture of Capital, Revenue and/or Balance Sheet",Ringway Infrastructure Services
Peterborough City Council,More than one Service Area Category,More than one Service Division,More than one Expenses Type,17/06/2011,390422,"92,429.45","Mixture of Capital, Revenue and/or Balance Sheet",Ringway Infrastructure Services
Peterborough City Council,Housing Services,Supporting People,Third Party Payments,17/06/2011,390568,"1,777.80",REVENUE,Peterborough Provider Services
Peterborough City Council,"Cultural, Environmental and Planning Services",Recreation & Sport,Premises,17/06/2011,390680,"1,027.22",REVENUE,Chubb Electronic Security Ltd
Peterborough City Council,Support Services,Support Services,Supplies and Services,17/06/2011,390692,"1,536.00",REVENUE,CIPFA
Peterborough City Council,Children's & Education Services - Education,Non-School Funding,Supplies and Services,17/06/2011,390699,720,REVENUE,NCC Group
Peterborough City Council,Capital,Capital,Capital Pending Update to BS,17/06/2011,390767,"136,996.61",CAPITAL,E N Suiter & Sons Ltd
Peterborough City Council,Support Services,Support Services,Supplies and Services,17/06/2011,390769,"14,259.12",REVENUE,Cable & Wireless Communications
Peterborough City Council,Children's & Education Services - Education,Primary,Supplies and Services,17/06/2011,390776,600,REVENUE,Redacted Personal Data
Peterborough City Council,Children's & Education Services - Education,Primary,Supplies and Services,17/06/2011,390778,600,REVENUE,Redacted Personal Data
Peterborough City Council,Children's & Education Services - Education,All Schools - apportion across sectors,Supplies and Services,17/06/2011,390787,646.45,REVENUE,Redacted Personal Data
Peterborough City Council,Children's & Education Services - Education,All Schools - apportion across sectors,Supplies and Services,17/06/2011,390788,"1,006.91",REVENUE,REM State Ltd
Peterborough City Council,Support Services,Support Services,Supplies and Services,17/06/2011,390789,680,REVENUE,PHF Services Limited
Peterborough City Council,Housing Services,Homelessness,Supplies and Services,17/06/2011,390809,550,REVENUE,Property Line
Peterborough City Council,Children's & Education Services - Children's Social Care,Children Looked After,Supplies and Services,17/06/2011,390816,876.37,REVENUE,Faith in Families
Peterborough City Council,Children's & Education Services - Children's Social Care,More than one Service Division,Supplies and Services,17/06/2011,390853,866.04,REVENUE,Children & Families Looked After Children
Peterborough City Council,Children's & Education Services - Children's Social Care,Family Support Services,Supplies and Services - Transfer Payments,17/06/2011,390860,"1,374.41",REVENUE,Cherry Lodge
Peterborough City Council,Capital,Capital,Capital Pending Update to BS,17/06/2011,390887,"-1,223.59",CAPITAL,Clearview Traffic Group Ltd
Peterborough City Council,More than one Service Area Category,More than one Service Division,More than one Expenses Type,20/06/2011,343685,"8,384.65","Mixture of Capital, Revenue and/or Balance Sheet",Atkins Limited
Peterborough City Council,"Highways, Roads & Transport Services","Transport planning, policy and strategy",Supplies and Services,20/06/2011,356766,837.69,REVENUE,Atkins Limited
Peterborough City Council,Children's & Education Services - Education,Non-School Funding,Supplies and Services,20/06/2011,384706,560,REVENUE,Wordswell Ltd
Peterborough City Council,"Highways, Roads & Transport Services","Transport planning, policy and strategy",Transport,20/06/2011,385665,561.04,REVENUE,Atkins Limited
Peterborough City Council,Capital,Capital,Capital Pending Update to BS,20/06/2011,387249,"45,534.48",CAPITAL,Idox Software Ltd
Peterborough City Council,Capital,Capital,Capital Pending Update to BS,20/06/2011,388342,"12,476.54",CAPITAL,Atkins Limited
Peterborough City Council,"Highways, Roads & Transport Services","Transport planning, policy and strategy",Transport,20/06/2011,388345,"1,041.55",REVENUE,Atkins Limited
Peterborough City Council,Capital,Capital,Capital Pending Update to BS,20/06/2011,388348,"8,925.46",CAPITAL,Atkins Limited
Peterborough City Council,Capital,Capital,Capital Pending Update to BS,20/06/2011,388349,"2,886.72",CAPITAL,Atkins Limited
Peterborough City Council,"Highways, Roads & Transport Services","Transport planning, policy and strategy",Transport,20/06/2011,388355,"4,857.22",REVENUE,Atkins Limited
Peterborough City Council,Capital,Capital,Capital Pending Update to BS,20/06/2011,388356,"2,051.75",CAPITAL,Atkins Limited
Peterborough City Council,"Highways, Roads & Transport Services","Environmental, Safety & Routine Maintenance",Transport,20/06/2011,388357,"1,065.96",REVENUE,Atkins Limited
Peterborough City Council,Capital,Capital,Capital Pending Update to BS,20/06/2011,388358,"12,594.89",CAPITAL,Atkins Limited
Peterborough City Council,Children's & Education Services - Children's Social Care,Other Children's & Families Services,Employees,20/06/2011,388434,"1,776.00",REVENUE,Blue Group International Ltd
Peterborough City Council,Children's & Education Services - Children's Social Care,Other Children's & Families Services,Employees,20/06/2011,388436,"1,647.58",REVENUE,Blue Group International Ltd
Peterborough City Council,"Cultural, Environmental and Planning Services",Community Development,Employees,20/06/2011,388446,"1,283.16",REVENUE,Anne Corder Recruitment
Peterborough City Council,Housing Services,Homelessness,Employees,20/06/2011,388450,612.88,REVENUE,Anne Corder Recruitment
Peterborough City Council,"Cultural, Environmental and Planning Services",Community Development,Supplies and Services,20/06/2011,388465,665.98,REVENUE,Triple SSS Limited
Peterborough City Council,Support Services,Support Services,Employees,20/06/2011,388477,"2,943.39",REVENUE,Association of Electoral Administrators
Peterborough City Council,Support Services,Support Services,Premises,20/06/2011,388537,"5,962.60",REVENUE,Baker Perkins Ltd
Peterborough City Council,Housing Services,Housing Benefits,Employees,20/06/2011,388577,684,REVENUE,Zebra Business Services Limited
Peterborough City Council,Children's & Education Services - Education,Management and support services,Supplies and Services,20/06/2011,388607,941.18,REVENUE,ADT Fire and Security
Peterborough City Council,"Cultural, Environmental and Planning Services",Community Development,Premises,20/06/2011,388626,"1,080.00",REVENUE,Hammerson Operations Ltd
Peterborough City Council,Capital,Capital,Capital Pending Update to BS,20/06/2011,388678,750,CAPITAL,Buckles Solicitors LLP
Peterborough City Council,More than one Service Area Category,More than one Service Division,Supplies and Services,20/06/2011,389065,701.76,REVENUE,Crown Records Management Ltd
Peterborough City Council,"Cultural, Environmental and Planning Services",Economic Development,Third Party Payments,20/06/2011,389341,"29,400.00",REVENUE,Peterborough Citizens Advice Bureau
Peterborough City Council,Children's & Education Services - Education,Non-School Funding,Supplies and Services,20/06/2011,389451,"5,819.03",REVENUE,ADT Fire and Security
Peterborough City Council,More than one Service Area Category,More than one Service Division,Balance Sheet,20/06/2011,389466,"1,543.97",Balance Sheet,Barnack Parish Council
Peterborough City Council,More than one Service Area Category,More than one Service Division,Balance Sheet,20/06/2011,389468,"30,283.00",Balance Sheet,Barnack Parish Council
Peterborough City Council,"Cultural, Environmental and Planning Services",Economic Development,Third Party Payments,20/06/2011,390804,"8,163.00",REVENUE,Dial Peterborough
Peterborough City Council,More than one Service Area Category,More than one Service Division,Balance Sheet,20/06/2011,390820,"6,800.00",Balance Sheet,Beachcroft LLP
Peterborough City Council,Children's & Education Services - Children's Social Care,Family Support Services,Premises,20/06/2011,390824,587.51,REVENUE,Easy Clean
Peterborough City Council,Deficit/(Surplus) on Trading Undertakings,Trading Account Surpluses & Deficits,Transport,20/06/2011,390900,795,REVENUE,Statutory Payment of Concessionary Fares to Bus Provider
Peterborough City Council,Children's & Education Services - Children's Social Care,Family Support Services,Supplies and Services,20/06/2011,390901,600,REVENUE,Tansor Assessment Ctr
Peterborough City Council,More than one Service Area Category,More than one Service Division,More than one Expenses Type,20/06/2011,390933,"2,835.99","Mixture of Capital, Revenue and/or Balance Sheet",M M Heating & Plumbing
Peterborough City Council,More than one Service Area Category,More than one Service Division,More than one Expenses Type,20/06/2011,390935,891,"Mixture of Capital, Revenue and/or Balance Sheet",Movement 2
Peterborough City Council,More than one Service Area Category,More than one Service Division,More than one Expenses Type,20/06/2011,390936,"10,379.25","Mixture of Capital, Revenue and/or Balance Sheet",Lawtech Ltd
Peterborough City Council,More than one Service Area Category,More than one Service Division,More than one Expenses Type,20/06/2011,390938,"10,254.28","Mixture of Capital, Revenue and/or Balance Sheet",Lawtech Ltd
Peterborough City Council,More than one Service Area Category,More than one Service Division,More than one Expenses Type,20/06/2011,390939,"8,032.50","Mixture of Capital, Revenue and/or Balance Sheet",Abbott & Ashby
Peterborough City Council,More than one Service Area Category,More than one Service Division,More than one Expenses Type,20/06/2011,390940,"9,172.64","Mixture of Capital, Revenue and/or Balance Sheet",T G Development Ltd
Peterborough City Council,More than one Service Area Category,More than one Service Division,More than one Expenses Type,20/06/2011,390941,"1,430.00","Mixture of Capital, Revenue and/or Balance Sheet",The Mobility Equipment Company
Peterborough City Council,Capital,Capital,Capital Pending Update to BS,20/06/2011,390945,"1,415.85",CAPITAL,Eaga Plc
Peterborough City Council,More than one Service Area Category,More than one Service Division,More than one Expenses Type,20/06/2011,390946,"9,738.75","Mixture of Capital, Revenue and/or Balance Sheet",Lawtech Ltd
Peterborough City Council,Capital,Capital,Capital Pending Update to BS,20/06/2011,390949,"-9,984.48",CAPITAL,Idox Software Ltd
Peterborough City Council,Deficit/(Surplus) on Trading Undertakings,Trading Account Surpluses & Deficits,Supplies and Services,20/06/2011,390968,"1,792.34",REVENUE,Barron Clark Castings Ltd
Peterborough City Council,Adult Social Care,Other Adult Services,Premises,20/06/2011,390970,"16,705.50",REVENUE,Debenham Tie Leung
Peterborough City Council,Deficit/(Surplus) on Trading Undertakings,Trading Account Surpluses & Deficits,Supplies and Services,20/06/2011,390972,"1,111.32",REVENUE,Barron Clark Castings Ltd
Peterborough City Council,Deficit/(Surplus) on Trading Undertakings,Trading Account Surpluses & Deficits,Supplies and Services,20/06/2011,390973,896.17,REVENUE,Barron Clark Castings Ltd
Peterborough City Council,Deficit/(Surplus) on Trading Undertakings,Trading Account Surpluses & Deficits,Supplies and Services,20/06/2011,390975,"1,994.11",REVENUE,Barron Clark Castings Ltd
Peterborough City Council,Deficit/(Surplus) on Trading Undertakings,Trading Account Surpluses & Deficits,Supplies and Services,20/06/2011,390976,"2,172.71",REVENUE,Barron Clark Castings Ltd
Peterborough City Council,Deficit/(Surplus) on Trading Undertakings,Trading Account Surpluses & Deficits,Supplies and Services,20/06/2011,390978,"1,479.41",REVENUE,Barron Clark Castings Ltd
Peterborough City Council,Children's & Education Services - Children's Social Care,Support Services & Management Costs,Supplies and Services,22/06/2011,371118,"3,236.39",REVENUE,Learning Logistics
Peterborough City Council,Adult Social Care,Other Adult Services,Supplies and Services,22/06/2011,373361,"1,250.00",REVENUE,Bridgegate Drug Services
Peterborough City Council,Deficit/(Surplus) on Trading Undertakings,Trading Account Surpluses & Deficits,Supplies and Services,22/06/2011,373854,"23,796.10",REVENUE,B Safe Electrical Services
Peterborough City Council,Children's & Education Services - Education,Secondary,Supplies and Services,22/06/2011,375478,"8,535.50",REVENUE,NACRO
Peterborough City Council,Children's & Education Services - Education,Secondary,Supplies and Services,22/06/2011,376621,"4,531.50",REVENUE,NACRO
Peterborough City Council,Capital,Capital,Capital Pending Update to BS,22/06/2011,376905,"5,955.94",CAPITAL,Queensbury Shelters Ltd
Peterborough City Council,Children's & Education Services - Education,Secondary,Supplies and Services,22/06/2011,377461,"1,676.00",REVENUE,NACRO
Peterborough City Council,Support Services,Support Services & Management Costs,Supplies and Services,22/06/2011,380008,"2,890.99",REVENUE,Serco Ltd
Peterborough City Council,Children's & Education Services - Children's Social Care,Children Looked After,Supplies and Services,22/06/2011,380474,"14,000.00",REVENUE,Circles Network
Peterborough City Council,Capital,Capital,Capital Pending Update to BS,22/06/2011,380992,"19,744.94",CAPITAL,British Telecom PLC
Peterborough City Council,Capital,Capital,Capital Pending Update to BS,22/06/2011,385174,"14,556.00",CAPITAL,The Technology Forge Ltd
Peterborough City Council,More than one Service Area Category,More than one Service Division,More than one Expenses Type,22/06/2011,385258,"3,176.80","Mixture of Capital, Revenue and/or Balance Sheet",Peterborough City Council
Peterborough City Council,Children's & Education Services - Children's Social Care,Children Looked After,Supplies and Services - Transfer Payments,22/06/2011,386612,"3,815.00",REVENUE,Heath Farm Family Services Ltd
Peterborough City Council,Children's & Education Services - Children's Social Care,Other Children's & Families Services,Supplies and Services,22/06/2011,387486,595.87,REVENUE,Language Line Ltd
Peterborough City Council,Children's & Education Services - Children's Social Care,Children Looked After,Supplies and Services - Transfer Payments,22/06/2011,387508,"-4,802.00",REVENUE,Heath Farm Family Services Ltd
Peterborough City Council,Children's & Education Services - Children's Social Care,Children Looked After,Supplies and Services - Transfer Payments,22/06/2011,387566,"11,571.30",REVENUE,Continuum Care & Educ. Group.
Peterborough City Council,Children's & Education Services - Children's Social Care,Other Children's & Families Services,Employees,22/06/2011,387714,"1,404.00",REVENUE,Evergood Associates
Peterborough City Council,Children's & Education Services - Children's Social Care,Other Children's & Families Services,Employees,22/06/2011,387715,"1,053.00",REVENUE,Evergood Associates
Peterborough City Council,Deficit/(Surplus) on Trading Undertakings,Trading Account Surpluses & Deficits,Transport,22/06/2011,387722,"1,173.53",REVENUE,Ford & Slater Group Ltd
Peterborough City Council,"Cultural, Environmental and Planning Services",Tourism,Supplies and Services,22/06/2011,388175,811,REVENUE,Stagelive
Peterborough City Council,Support Services,Support Services,Employees,22/06/2011,388259,"1,326.67",REVENUE,Venn Group Ltd
Peterborough City Council,Children's & Education Services - Education,Secondary,Employees,22/06/2011,388422,750,REVENUE,Redacted Personal Data
Peterborough City Council,Children's & Education Services - Education,Non-School Funding,Supplies and Services,22/06/2011,388425,625,REVENUE,British Youth Council
Peterborough City Council,Children's & Education Services - Children's Social Care,Family Support Services,Premises,22/06/2011,388451,615.79,REVENUE,Ideal Cleaning Services
Peterborough City Council,Children's & Education Services - Education,Primary,Supplies and Services,22/06/2011,388527,760.06,REVENUE,Serco Ltd
Peterborough City Council,Support Services,Support Services,Supplies and Services,22/06/2011,388532,"1,608.38",REVENUE,Serco Ltd
Peterborough City Council,Children's & Education Services - Education,Non-School Funding,Supplies and Services,22/06/2011,388547,810,REVENUE,Redacted Personal Data
Peterborough City Council,Support Services,Support Services,Employees,22/06/2011,388624,"1,326.67",REVENUE,Venn Group Ltd
Peterborough City Council,Children's & Education Services - Education,Non-School Funding,Supplies and Services,22/06/2011,388677,"1,400.00",REVENUE,Barnack Pre-School
Peterborough City Council,Children's & Education Services - Children's Social Care,Children Looked After,Supplies and Services,22/06/2011,388687,653.08,REVENUE,Somerset County Council
Peterborough City Council,Housing Services,Homelessness,Supplies and Services,22/06/2011,388691,703.51,REVENUE,Euro RSCG Riley Ltd
Peterborough City Council,Children's & Education Services - Children's Social Care,Youth Justice,Employees,22/06/2011,388695,"1,645.00",REVENUE,Anglia Ruskin University
Peterborough City Council,"Cultural, Environmental and Planning Services",Flood Defence & Land Drainage,Supplies and Services,22/06/2011,388702,"10,904.40",REVENUE,L A Jackson
Peterborough City Council,Children's & Education Services - Education,Non-School Funding,Supplies and Services,22/06/2011,388744,"23,588.21",REVENUE,Priors Court School
Peterborough City Council,Support Services,Support Services,Supplies and Services,22/06/2011,388802,"2,233.71",REVENUE,Wilkin Chapman
Peterborough City Council,Support Services,Support Services,Supplies and Services,22/06/2011,388803,"8,428.01",REVENUE,Wilkin Chapman
Peterborough City Council,Support Services,Support Services,Supplies and Services,22/06/2011,388945,"3,279.60",REVENUE,Serco Ltd
Peterborough City Council,Support Services,Support Services,Supplies and Services,22/06/2011,388946,"1,767.60",REVENUE,Serco Ltd
Peterborough City Council,"Cultural, Environmental and Planning Services",Planning Policy,Supplies and Services,22/06/2011,388947,"1,257.00",REVENUE,Serco Ltd
Peterborough City Council,Support Services,Support Services,Supplies and Services,22/06/2011,388949,"1,005.60",REVENUE,Serco Ltd
Peterborough City Council,Capital,Capital,Capital Pending Update to BS,22/06/2011,388951,"30,663.60",CAPITAL,Serco Ltd
Peterborough City Council,Central Services to the Public,Elections,Supplies and Services,22/06/2011,388952,600,REVENUE,Serco Ltd
Peterborough City Council,Support Services,Support Services,Supplies and Services,22/06/2011,388954,502.8,REVENUE,Serco Ltd
Peterborough City Council,Support Services,Support Services,Supplies and Services,22/06/2011,388955,"7,341.60",REVENUE,Serco Ltd
Peterborough City Council,Central Services to the Public,Elections,Supplies and Services,22/06/2011,388956,"16,485.07",REVENUE,Serco Ltd
Peterborough City Council,Capital,Capital,Capital Pending Update to BS,22/06/2011,388959,"3,011.40",CAPITAL,Serco Ltd
Peterborough City Council,Corporate & Democratic Core,Corporate Management,Supplies and Services,22/06/2011,388963,"1,005.60",REVENUE,Serco Ltd
Peterborough City Council,Capital,Capital,Capital Pending Update to BS,22/06/2011,388964,"6,244.20",CAPITAL,Serco Ltd
Peterborough City Council,Support Services,Support Services,Third Party Payments,22/06/2011,388965,"1,207,176.90",REVENUE,Serco Ltd
Peterborough City Council,Support Services,Support Services,Supplies and Services,22/06/2011,388966,792.67,REVENUE,Serco Ltd
Peterborough City Council,Capital,Capital,Capital Pending Update to BS,22/06/2011,388967,"4,852.97",CAPITAL,Serco Ltd
Peterborough City Council,"Cultural, Environmental and Planning Services",Economic Development,Third Party Payments,22/06/2011,388968,"5,567.50",REVENUE,Gladstone Connect Ltd
Peterborough City Council,Capital,Capital,Capital Pending Update to BS,22/06/2011,388970,"2,400.00",CAPITAL,Hereward Stationers & Printers Ltd
Peterborough City Council,Children's & Education Services - Children's Social Care,Children Looked After,Supplies and Services - Transfer Payments,22/06/2011,389052,"3,454.33",REVENUE,Synergy Fostering Ltd
Peterborough City Council,Deficit/(Surplus) on Trading Undertakings,Trading Account Surpluses & Deficits,Supplies and Services,22/06/2011,389061,"5,977.37",REVENUE,RMS Engineers LTD
Peterborough City Council,Children's & Education Services - Education,Non-School Funding,Third Party Payments,22/06/2011,389062,"10,166.70",REVENUE,Pre-School Learning Alliance
Peterborough City Council,"Cultural, Environmental and Planning Services",Environmental Initiatives,Supplies and Services,22/06/2011,389067,"4,038.00",REVENUE,Land Use Consultants
Peterborough City Council,"Cultural, Environmental and Planning Services",Planning Policy,Supplies and Services,22/06/2011,389068,512.06,REVENUE,Danwood Finance Ltd
Peterborough City Council,Housing Services,Housing Benefits,Supplies and Services,22/06/2011,389075,"3,504.00",REVENUE,Capita Business Services Ltd
Peterborough City Council,Housing Services,Housing Benefits,Supplies and Services,22/06/2011,389076,"8,845.43",REVENUE,Capita Business Services Ltd
Peterborough City Council,Housing Services,Housing Benefits,Supplies and Services,22/06/2011,389077,"29,454.00",REVENUE,Capita Business Services Ltd
Peterborough City Council,Children's & Education Services - Children's Social Care,Other Children's & Families Services,Employees,22/06/2011,389089,"1,731.60",REVENUE,Medicare First
Peterborough City Council,Children's & Education Services - Education,Primary,More than one Expenses Type,22/06/2011,389090,"1,005.00",REVENUE,Kingsgate Trading Ltd
Peterborough City Council,Children's & Education Services - Education,Primary,More than one Expenses Type,22/06/2011,389091,"1,143.00",REVENUE,Kingsgate Trading Ltd
Peterborough City Council,"Highways, Roads & Transport Services","Transport planning, policy and strategy",Employees,22/06/2011,389095,"1,395.00",REVENUE,Randstad CPE
Peterborough City Council,"Highways, Roads & Transport Services","Transport planning, policy and strategy",Employees,22/06/2011,389110,"1,140.00",REVENUE,Hays Specialist Recruitment Ltd
Peterborough City Council,"Cultural, Environmental and Planning Services",Development Control,Supplies and Services,22/06/2011,389160,764.4,REVENUE,Johnston Press Midlands Division
Peterborough City Council,"Cultural, Environmental and Planning Services",Development Control,Supplies and Services,22/06/2011,389161,529.19,REVENUE,Johnston Press Midlands Division
Peterborough City Council,Children's & Education Services - Children's Social Care,Support Services & Management Costs,Supplies and Services,22/06/2011,389221,751.7,REVENUE,Beech Clinic
Peterborough City Council,Children's & Education Services - Education,Non-School Funding,Transport,22/06/2011,389298,"1,482.00",REVENUE,Ash School Transport
Peterborough City Council,Children's & Education Services - Education,Non-School Funding,Transport,22/06/2011,389299,885.72,REVENUE,Ash School Transport
Peterborough City Council,Children's & Education Services - Education,Non-School Funding,Transport,22/06/2011,389300,"1,368.00",REVENUE,Ash School Transport
Peterborough City Council,Children's & Education Services - Education,Non-School Funding,Transport,22/06/2011,389302,"1,254.00",REVENUE,Ash School Transport
Peterborough City Council,Children's & Education Services - Education,Non-School Funding,Transport,22/06/2011,389303,"1,368.00",REVENUE,Ash School Transport
Peterborough City Council,Children's & Education Services - Education,Non-School Funding,Transport,22/06/2011,389309,576,REVENUE,Ash School Transport
Peterborough City Council,"Highways, Roads & Transport Services",Public Transport,Supplies and Services,22/06/2011,389319,"1,038.60",REVENUE,Rollapaluza Ltd
Peterborough City Council,Children's & Education Services - Children's Social Care,Children Looked After,Supplies and Services - Transfer Payments,22/06/2011,389333,"5,722.50",REVENUE,Heath Farm Family Services Ltd
Peterborough City Council,More than one Service Area Category,More than one Service Division,More than one Expenses Type,22/06/2011,389336,"2,158.92",REVENUE,Hays Specialist Recruitment Ltd
Peterborough City Council,Children's & Education Services - Children's Social Care,Children Looked After,Supplies and Services - Transfer Payments,22/06/2011,389355,"2,638.33",REVENUE,Foster Care Associates Ltd FCA
Peterborough City Council,Children's & Education Services - Education,Non-School Funding,Supplies and Services,22/06/2011,389361,"9,123.20",REVENUE,Response UK Security & Fire Ltd
Peterborough City Council,Support Services,Support Services,Supplies and Services,22/06/2011,389422,"55,294.20",REVENUE,Danwood Group Limited
Peterborough City Council,"Cultural, Environmental and Planning Services",Economic Development,Employees,22/06/2011,389446,"1,814.40",REVENUE,Hays Specialist Recruitment Ltd
Peterborough City Council,"Cultural, Environmental and Planning Services",Economic Development,More than one Expenses Type,22/06/2011,389449,"1,258.96",REVENUE,Hays Specialist Recruitment Ltd
Peterborough City Council,Children's & Education Services - Education,Non-School Funding,Supplies and Services,22/06/2011,389532,"2,244.00",REVENUE,Stagecoach in Peterborough
Peterborough City Council,Children's & Education Services - Education,Secondary,Supplies and Services,22/06/2011,389558,"4,976.40",REVENUE,Rider Levett Bucknall UK Ltd
Peterborough City Council,Support Services,Support Services,Supplies and Services,22/06/2011,389981,561.6,REVENUE,Speedy Couriers
Peterborough City Council,"Highways, Roads & Transport Services",Traffic management & Road Safety,Supplies and Services,22/06/2011,389999,705.6,REVENUE,Johnston Press Midlands Division
Peterborough City Council,Children's & Education Services - Children's Social Care,Children Looked After,Supplies and Services,22/06/2011,390096,"4,166.66",REVENUE,DRINKSENSE
Peterborough City Council,Children's & Education Services - Education,Non-School Funding,Transport,22/06/2011,390141,"3,610.00",REVENUE,Grettons Coaches
Peterborough City Council,Children's & Education Services - Education,Non-School Funding,Transport,22/06/2011,390142,"3,895.00",REVENUE,Grettons Coaches
Peterborough City Council,Children's & Education Services - Education,Non-School Funding,Transport,22/06/2011,390143,"3,515.00",REVENUE,Grettons Coaches
Peterborough City Council,Children's & Education Services - Education,Non-School Funding,Transport,22/06/2011,390144,"3,496.00",REVENUE,Grettons Coaches
Peterborough City Council,Children's & Education Services - Education,Non-School Funding,Transport,22/06/2011,390145,"3,496.00",REVENUE,Grettons Coaches
Peterborough City Council,Children's & Education Services - Education,Non-School Funding,Transport,22/06/2011,390146,"3,515.00",REVENUE,Grettons Coaches
Peterborough City Council,Children's & Education Services - Education,Non-School Funding,Transport,22/06/2011,390147,"3,515.00",REVENUE,Grettons Coaches
Peterborough City Council,Children's & Education Services - Education,Non-School Funding,Transport,22/06/2011,390148,"3,743.00",REVENUE,Grettons Coaches
Peterborough City Council,Children's & Education Services - Education,Non-School Funding,Transport,22/06/2011,390149,919.2,REVENUE,R T Enterprises Ltd T/A Royal Taxis
Peterborough City Council,Children's & Education Services - Education,Non-School Funding,Transport,22/06/2011,390150,"1,482.00",REVENUE,R T Enterprises Ltd T/A Royal Taxis
Peterborough City Council,Children's & Education Services - Education,Non-School Funding,Transport,22/06/2011,390151,"1,368.00",REVENUE,R T Enterprises Ltd T/A Royal Taxis
Peterborough City Council,Children's & Education Services - Education,Non-School Funding,Transport,22/06/2011,390152,592.8,REVENUE,R T Enterprises Ltd T/A Royal Taxis
Peterborough City Council,Children's & Education Services - Education,Non-School Funding,Transport,22/06/2011,390154,"1,094.40",REVENUE,R T Enterprises Ltd T/A Royal Taxis
Peterborough City Council,Children's & Education Services - Education,Non-School Funding,Transport,22/06/2011,390157,"2,553.60",REVENUE,King Cabz
Peterborough City Council,Children's & Education Services - Education,Non-School Funding,Transport,22/06/2011,390158,547.2,REVENUE,King Cabz
Peterborough City Council,More than one Service Area Category,More than one Service Division,Transport,22/06/2011,390167,991.2,REVENUE,R T Enterprises Ltd T/A Royal Taxis
Peterborough City Council,Children's & Education Services - Children's Social Care,More than one Service Division,Supplies and Services,22/06/2011,390194,"2,262.60",REVENUE,R S P LTD
Peterborough City Council,Support Services,Support Services,Supplies and Services,22/06/2011,390243,666,REVENUE,Key People Ltd
Peterborough City Council,More than one Service Area Category,More than one Service Division,More than one Expenses Type,22/06/2011,390261,"21,097.62","Mixture of Capital, Revenue and/or Balance Sheet",Ringway Infrastructure Services
Peterborough City Council,Children's & Education Services - Children's Social Care,Service Strategy,Employees,22/06/2011,390336,874.5,REVENUE,Gosfield House
Peterborough City Council,Children's & Education Services - Education,Non-School Funding,Transport,22/06/2011,390343,729.6,REVENUE,Woodgrange Travel Ltd t/a DiamondCars
Peterborough City Council,Children's & Education Services - Education,Non-School Funding,Transport,22/06/2011,390344,"3,237.60",REVENUE,Woodgrange Travel Ltd t/a DiamondCars
Peterborough City Council,Children's & Education Services - Education,Non-School Funding,Transport,22/06/2011,390346,"1,618.80",REVENUE,Woodgrange Travel Ltd t/a DiamondCars
Peterborough City Council,Children's & Education Services - Education,Non-School Funding,Transport,22/06/2011,390347,743.28,REVENUE,Woodgrange Travel Ltd t/a DiamondCars
Peterborough City Council,Children's & Education Services - Education,Non-School Funding,Transport,22/06/2011,390348,957.6,REVENUE,Woodgrange Travel Ltd t/a DiamondCars
Peterborough City Council,Children's & Education Services - Education,Non-School Funding,Transport,22/06/2011,390349,"2,191.80",REVENUE,Woodgrange Travel Ltd t/a DiamondCars
Peterborough City Council,Children's & Education Services - Education,Non-School Funding,Transport,22/06/2011,390350,"2,941.20",REVENUE,Woodgrange Travel Ltd t/a DiamondCars
Peterborough City Council,Children's & Education Services - Education,Non-School Funding,Transport,22/06/2011,390351,"1,983.60",REVENUE,Woodgrange Travel Ltd t/a DiamondCars
Peterborough City Council,Children's & Education Services - Education,Non-School Funding,Transport,22/06/2011,390352,"1,345.20",REVENUE,Woodgrange Travel Ltd t/a DiamondCars
Peterborough City Council,Children's & Education Services - Education,Non-School Funding,Transport,22/06/2011,390353,"1,299.60",REVENUE,Woodgrange Travel Ltd t/a DiamondCars
Peterborough City Council,Children's & Education Services - Education,Non-School Funding,Transport,22/06/2011,390356,"3,397.20",REVENUE,Woodgrange Travel Ltd t/a DiamondCars
Peterborough City Council,Children's & Education Services - Education,Non-School Funding,Transport,22/06/2011,390357,"1,824.00",REVENUE,Woodgrange Travel Ltd t/a DiamondCars
Peterborough City Council,Children's & Education Services - Education,Non-School Funding,Transport,22/06/2011,390358,558.6,REVENUE,Woodgrange Travel Ltd t/a DiamondCars
Peterborough City Council,Children's & Education Services - Education,Non-School Funding,Transport,22/06/2011,390360,"1,596.00",REVENUE,Orton Comm. Transport Assoc. Ltd
Peterborough City Council,Children's & Education Services - Education,Non-School Funding,Transport,22/06/2011,390361,"1,900.00",REVENUE,Orton Comm. Transport Assoc. Ltd
Peterborough City Council,Children's & Education Services - Education,Non-School Funding,Transport,22/06/2011,390362,"1,805.00",REVENUE,Orton Comm. Transport Assoc. Ltd
Peterborough City Council,Children's & Education Services - Education,Non-School Funding,Transport,22/06/2011,390363,"2,052.00",REVENUE,Woodgrange Travel Ltd t/a DiamondCars
Peterborough City Council,Children's & Education Services - Education,Non-School Funding,Transport,22/06/2011,390364,"2,097.60",REVENUE,Woodgrange Travel Ltd t/a DiamondCars
Peterborough City Council,Children's & Education Services - Education,Non-School Funding,Transport,22/06/2011,390366,820.8,REVENUE,King Cabz
Peterborough City Council,Children's & Education Services - Education,Non-School Funding,Transport,22/06/2011,390367,775.2,REVENUE,King Cabz
Peterborough City Council,Children's & Education Services - Education,Non-School Funding,Transport,22/06/2011,390368,"1,094.40",REVENUE,King Cabz
Peterborough City Council,Children's & Education Services - Education,Non-School Funding,Transport,22/06/2011,390369,"2,708.83",REVENUE,Translinc Ltd
Peterborough City Council,Children's & Education Services - Education,Non-School Funding,Transport,22/06/2011,390370,"2,271.07",REVENUE,Translinc Ltd
Peterborough City Council,Children's & Education Services - Education,Non-School Funding,Transport,22/06/2011,390371,"2,409.39",REVENUE,Translinc Ltd
Peterborough City Council,Children's & Education Services - Education,Non-School Funding,Transport,22/06/2011,390372,"2,351.56",REVENUE,Translinc Ltd
Peterborough City Council,Housing Services,Housing Benefits,Supplies and Services,22/06/2011,390416,"2,760.42",REVENUE,Financial Data Management
Peterborough City Council,Support Services,Support Services,Premises,22/06/2011,390463,"102,750.18",REVENUE,Zurich Insurance Company
Peterborough City Council,More than one Service Area Category,More than one Service Division,Balance Sheet,22/06/2011,390561,"5,000.00",Balance Sheet,Redacted Personal Data
Peterborough City Council,Support Services,Support Services,Supplies and Services,22/06/2011,390620,851.4,REVENUE,Weightmans LLP
Peterborough City Council,Capital,Capital,Capital Pending Update to BS,22/06/2011,390698,"1,312,537.20",CAPITAL,Kier Eastern
Peterborough City Council,More than one Service Area Category,More than one Service Division,Balance Sheet,22/06/2011,390829,"1,500.00",Balance Sheet,Beachcroft LLP
Peterborough City Council,More than one Service Area Category,More than one Service Division,Balance Sheet,22/06/2011,390841,"1,018.80",Balance Sheet,Redacted Personal Data
Peterborough City Council,"Cultural, Environmental and Planning Services",Waste Collection,Supplies and Services,22/06/2011,390848,705.96,REVENUE,Augean South Ltd
Peterborough City Council,Children's & Education Services - Children's Social Care,Support Services & Management Costs,Supplies and Services,22/06/2011,390849,"1,246.38",REVENUE,N & S Consultants Ltd
Peterborough City Council,Children's & Education Services - Education,Support Services & Management Costs,Supplies and Services,22/06/2011,390881,"3,000.00",REVENUE,Redacted Personal Data
Peterborough City Council,More than one Service Area Category,More than one Service Division,Balance Sheet,22/06/2011,390884,825.59,Balance Sheet,Dept for Work & Pensions
Peterborough City Council,Children's & Education Services - Education,Non-School Funding,Supplies and Services,22/06/2011,390898,"-1,400.00",REVENUE,Barnack Pre-School
Peterborough City Council,Support Services,Support Services,Supplies and Services,22/06/2011,390907,"15,000.00",REVENUE,Postage By Phone - Pitney Bowes Ltd
Peterborough City Council,Court Services,Coroner's Court Service,Supplies and Services,22/06/2011,390922,"3,000.80",REVENUE,BDW Practice Account
Peterborough City Council,Court Services,Coroner's Court Service,Supplies and Services,22/06/2011,390923,"3,388.00",REVENUE,BDW Practice Account
Peterborough City Council,Children's & Education Services - Education,Non-School Funding,Supplies and Services,22/06/2011,390930,580.8,REVENUE,Peterborough Regional College
Peterborough City Council,Children's & Education Services - Education,Non-School Funding,Supplies and Services,22/06/2011,390932,780,REVENUE,Kindercare Pre-School Ltd
Peterborough City Council,Children's & Education Services - Children's Social Care,Support Services & Management Costs,Supplies and Services,22/06/2011,390948,"3,300.00",REVENUE,HM Courts and Tribunals Service (HMCTS)
Peterborough City Council,More than one Service Area Category,More than one Service Division,More than one Expenses Type,22/06/2011,390958,"4,688.40",REVENUE,The Synergy Group
Peterborough City Council,Housing Services,Housing Benefits,Employees,22/06/2011,390959,"5,972.53",REVENUE,The Synergy Group
Peterborough City Council,Children's & Education Services - Children's Social Care,Support Services & Management Costs,Supplies and Services,22/06/2011,391022,"2,220.00",REVENUE,Redacted Personal Data
Peterborough City Council,Deficit/(Surplus) on Trading Undertakings,Trading Account Surpluses & Deficits,Supplies and Services,22/06/2011,391025,986.82,REVENUE,Barron Clark Castings Ltd
Peterborough City Council,Deficit/(Surplus) on Trading Undertakings,Trading Account Surpluses & Deficits,Supplies and Services,22/06/2011,391027,583.24,REVENUE,Barron Clark Castings Ltd
Peterborough City Council,Deficit/(Surplus) on Trading Undertakings,Trading Account Surpluses & Deficits,Supplies and Services,22/06/2011,391029,853.54,REVENUE,Barron Clark Castings Ltd
Peterborough City Council,Support Services,Support Services,Premises,22/06/2011,391050,"13,318.25",REVENUE,Southern Electric
Peterborough City Council,Support Services,Support Services,Premises,22/06/2011,391051,"1,187.03",REVENUE,Southern Electric
Peterborough City Council,Children's & Education Services - Education,Secondary,Supplies and Services,22/06/2011,391053,"1,020.00",REVENUE,M A Associates
Peterborough City Council,Capital,Capital,Capital Pending Update to BS,22/06/2011,391068,"33,590.34",CAPITAL,Prescient Power Ltd
Peterborough City Council,Children's & Education Services - Children's Social Care,Family Support Services,Supplies and Services,22/06/2011,391082,853.02,REVENUE,Britannia Fire & Security Ltd
Peterborough City Council,"Cultural, Environmental and Planning Services",Economic Development,Third Party Payments,22/06/2011,391088,"3,525.00",REVENUE,P'Boro Council For Voluntary Srvs
Peterborough City Council,Children's & Education Services - Children's Social Care,Children Looked After,Supplies and Services - Transfer Payments,22/06/2011,391089,"3,342.90",REVENUE,Synergy Fostering Ltd
Peterborough City Council,"Cultural, Environmental and Planning Services",Economic Development,Third Party Payments,22/06/2011,391090,"3,702.50",REVENUE,P'Boro Council For Voluntary Srvs
Peterborough City Council,Children's & Education Services - Children's Social Care,Children Looked After,Supplies and Services - Transfer Payments,22/06/2011,391091,"3,342.90",REVENUE,Synergy Fostering Ltd
Peterborough City Council,Children's & Education Services - Children's Social Care,Children Looked After,Employees,22/06/2011,391093,"1,164.60",REVENUE,Mutual Ventures Ltd
Peterborough City Council,Children's & Education Services - Education,Non-School Funding,Third Party Payments,22/06/2011,391104,750,REVENUE,Glinton Pre-School Playgroup
Peterborough City Council,Children's & Education Services - Education,Non-School Funding,Supplies and Services,22/06/2011,391110,"3,480.00",REVENUE,Foundry Mountain Activities Ltd
Peterborough City Council,"Cultural, Environmental and Planning Services",Economic Development,Third Party Payments,22/06/2011,391117,"8,982.50",REVENUE,P'Boro Council For Voluntary Srvs
Peterborough City Council,"Cultural, Environmental and Planning Services",Community Development,Supplies and Services,22/06/2011,391121,"3,474.00",REVENUE,Ray & Paul Interiors
Peterborough City Council,More than one Service Area Category,More than one Service Division,Supplies and Services,22/06/2011,391126,"12,271.55",REVENUE,Loomis UK Ltd
Peterborough City Council,Support Services,Support Services,Supplies and Services,22/06/2011,391127,-507.17,REVENUE,Loomis UK Ltd
Peterborough City Council,Children's & Education Services - Children's Social Care,Children Looked After,Supplies and Services - Transfer Payments,22/06/2011,391130,"2,524.56",REVENUE,Alliance Foster Care
Peterborough City Council,Children's & Education Services - Education,Non-School Funding,Supplies and Services,22/06/2011,391136,"4,729.55",REVENUE,Westwood & Ravensthorpe Children's Centre
Peterborough City Council,Children's & Education Services - Education,Non-School Funding,Supplies and Services,22/06/2011,391137,"14,515.96",REVENUE,Alpha Big Sky Ltd
Peterborough City Council,Children's & Education Services - Education,Non-School Funding,Supplies and Services,22/06/2011,391138,"9,183.28",REVENUE,Alpha Big Sky Ltd
Peterborough City Council,Children's & Education Services - Education,Non-School Funding,Supplies and Services,22/06/2011,391139,"8,216.86",REVENUE,Anna-Ca-Soo Day Nursery
Peterborough City Council,Children's & Education Services - Education,Non-School Funding,Supplies and Services,22/06/2011,391141,"2,070.45",REVENUE,Barnack Pre-School
Peterborough City Council,Children's & Education Services - Education,Non-School Funding,Supplies and Services,22/06/2011,391142,"12,710.28",REVENUE,Beeches Pre-School
Peterborough City Council,Children's & Education Services - Education,Non-School Funding,Supplies and Services,22/06/2011,391143,"9,441.91",REVENUE,PSLA
Peterborough City Council,Children's & Education Services - Education,Non-School Funding,Supplies and Services,22/06/2011,391144,"4,467.19",REVENUE,Birchtree Pre-School
Peterborough City Council,Children's & Education Services - Education,Non-School Funding,Supplies and Services,22/06/2011,391145,"8,875.70",REVENUE,Braybrook Nursery
Peterborough City Council,Children's & Education Services - Education,Non-School Funding,Supplies and Services,22/06/2011,391146,"18,529.31",REVENUE,Bretton Community Pre-School
Peterborough City Council,Children's & Education Services - Education,Non-School Funding,Supplies and Services,22/06/2011,391147,"13,931.46",REVENUE,Bright Kids Nursery Ltd (Lynchwood)
Peterborough City Council,Children's & Education Services - Education,Non-School Funding,Supplies and Services,22/06/2011,391148,"2,394.71",REVENUE,Bright Kids Nursery Ltd (Broadway)
Peterborough City Council,Children's & Education Services - Education,Non-School Funding,Supplies and Services,22/06/2011,391149,"15,045.62",REVENUE,Bright Star's day Nursery
Peterborough City Council,Children's & Education Services - Education,Non-School Funding,Supplies and Services,22/06/2011,391150,"9,079.07",REVENUE,Brookside Playgroup
Peterborough City Council,Children's & Education Services - Education,Non-School Funding,Supplies and Services,22/06/2011,391151,"7,279.92",REVENUE,Bundles of Fun Day Nursery
Peterborough City Council,Children's & Education Services - Education,Non-School Funding,Supplies and Services,22/06/2011,391152,"9,385.01",REVENUE,Bunny Tots Pre-School
Peterborough City Council,Children's & Education Services - Education,Non-School Funding,Supplies and Services,22/06/2011,391153,"9,754.58",REVENUE,Busy Bees Pre-School
Peterborough City Council,Children's & Education Services - Education,Non-School Funding,Supplies and Services,22/06/2011,391154,"10,986.46",REVENUE,Carousel Day Nursery
Peterborough City Council,Children's & Education Services - Education,Non-School Funding,Supplies and Services,22/06/2011,391155,"4,506.45",REVENUE,Castor & Ailsworth Playgroup
Peterborough City Council,Children's & Education Services - Education,Non-School Funding,Supplies and Services,22/06/2011,391157,"1,279.89",REVENUE,Cygnets Pre-School
Peterborough City Council,Children's & Education Services - Education,Non-School Funding,Supplies and Services,22/06/2011,391158,"6,071.16",REVENUE,Best Start Childrens Nursery
Peterborough City Council,Children's & Education Services - Education,Non-School Funding,Supplies and Services,22/06/2011,391159,"8,794.21",REVENUE,Discovery Pre School
Peterborough City Council,Children's & Education Services - Education,Non-School Funding,Supplies and Services,22/06/2011,391160,"7,814.19",REVENUE,Dogsthorpe Community Pre-School
Peterborough City Council,Children's & Education Services - Education,Non-School Funding,Supplies and Services,22/06/2011,391161,"4,409.31",REVENUE,East Community Playgroup
Peterborough City Council,Children's & Education Services - Education,Non-School Funding,Supplies and Services,22/06/2011,391162,"11,082.95",REVENUE,Eye Pre-School
Peterborough City Council,Children's & Education Services - Education,Non-School Funding,Supplies and Services,22/06/2011,391163,"24,260.93",REVENUE,PSLA
Peterborough City Council,Children's & Education Services - Education,Non-School Funding,Supplies and Services,22/06/2011,391164,"6,473.02",REVENUE,First Steps Nursery (Maxey) Ltd
Peterborough City Council,Children's & Education Services - Education,Non-School Funding,Supplies and Services,22/06/2011,391165,"19,613.01",REVENUE,Flying Start Pre-School & Day Care Centre
Peterborough City Council,Children's & Education Services - Education,Non-School Funding,Supplies and Services,22/06/2011,391167,"3,249.55",REVENUE,Glinton Pre-School Playgroup
Peterborough City Council,Children's & Education Services - Education,Non-School Funding,Supplies and Services,22/06/2011,391168,"1,222.15",REVENUE,Redacted Personal Data
Peterborough City Council,Children's & Education Services - Education,Non-School Funding,Supplies and Services,22/06/2011,391169,876.65,REVENUE,Redacted Personal Data
Peterborough City Council,Children's & Education Services - Education,Non-School Funding,Supplies and Services,22/06/2011,391170,"4,601.47",REVENUE,Happy Days Playgroup
Peterborough City Council,Children's & Education Services - Education,Non-School Funding,Supplies and Services,22/06/2011,391171,704.82,REVENUE,Rachaels Childminding
Peterborough City Council,Children's & Education Services - Education,Non-School Funding,Supplies and Services,22/06/2011,391172,904.73,REVENUE,Redacted Personal Data
Peterborough City Council,Children's & Education Services - Education,Non-School Funding,Supplies and Services,22/06/2011,391173,"5,154.89",REVENUE,Helpston Playhouse & Under Fives
Peterborough City Council,Children's & Education Services - Education,Non-School Funding,Supplies and Services,22/06/2011,391174,"27,234.12",REVENUE,Herlington Pre-School
Peterborough City Council,Children's & Education Services - Education,Non-School Funding,Supplies and Services,22/06/2011,391175,"3,787.35",REVENUE,Husaini Pre-School
Peterborough City Council,Children's & Education Services - Education,Non-School Funding,Supplies and Services,22/06/2011,391176,782.78,REVENUE,Redacted Personal Data
Peterborough City Council,Children's & Education Services - Education,Non-School Funding,Supplies and Services,22/06/2011,391177,"1,277.11",REVENUE,Redacted Personal Data
Peterborough City Council,Children's & Education Services - Education,Non-School Funding,Supplies and Services,22/06/2011,391178,"3,008.09",REVENUE,Jenny's Pre School Playgroup
Peterborough City Council,Children's & Education Services - Education,Non-School Funding,Supplies and Services,22/06/2011,391180,"16,245.57",REVENUE,Kiddi Caru Day Nursery
Peterborough City Council,Children's & Education Services - Education,Non-School Funding,Supplies and Services,22/06/2011,391181,"9,488.16",REVENUE,Kidsunlimited Group Ltd
Peterborough City Council,Children's & Education Services - Education,Non-School Funding,Supplies and Services,22/06/2011,391182,"28,569.07",REVENUE,Kindercare Pre-School Ltd
Peterborough City Council,Children's & Education Services - Education,Non-School Funding,Supplies and Services,22/06/2011,391183,"21,450.66",REVENUE,Leapfrog Day Nurseries
Peterborough City Council,Children's & Education Services - Education,Non-School Funding,Supplies and Services,22/06/2011,391184,"9,115.80",REVENUE,Leighton Primary Pre-School
Peterborough City Council,Children's & Education Services - Education,Non-School Funding,Supplies and Services,22/06/2011,391185,"3,943.85",REVENUE,Little Angels
Peterborough City Council,Children's & Education Services - Education,Non-School Funding,Supplies and Services,22/06/2011,391186,"2,614.29",REVENUE,Fulbridge Nursery LIttle Gems
Peterborough City Council,Children's & Education Services - Education,Non-School Funding,Supplies and Services,22/06/2011,391187,"3,913.30",REVENUE,Little Pals Playgroup
Peterborough City Council,Children's & Education Services - Education,Non-School Funding,Supplies and Services,22/06/2011,391188,"3,986.98",REVENUE,Little Poppets Day Nursery
Peterborough City Council,Children's & Education Services - Education,Non-School Funding,Supplies and Services,22/06/2011,391189,"39,087.06",REVENUE,Little Stars Day Nursery
Peterborough City Council,Children's & Education Services - Education,Non-School Funding,Supplies and Services,22/06/2011,391190,"4,907.37",REVENUE,Little Steps Day Nursery
Peterborough City Council,Children's & Education Services - Education,Non-School Funding,Supplies and Services,22/06/2011,391191,"7,983.45",REVENUE,Little Tigers Day Nursery
Peterborough City Council,Children's & Education Services - Education,Non-School Funding,Supplies and Services,22/06/2011,391192,"7,287.27",REVENUE,Longthorpe Playgroup
Peterborough City Council,Children's & Education Services - Education,Non-School Funding,Supplies and Services,22/06/2011,391193,"7,437.11",REVENUE,PSLA
Peterborough City Council,Children's & Education Services - Education,Non-School Funding,Supplies and Services,22/06/2011,391195,"2,191.62",REVENUE,Redacted Personal Data
Peterborough City Council,Children's & Education Services - Education,Non-School Funding,Supplies and Services,22/06/2011,391197,"6,639.33",REVENUE,Millfield Pre-School
Peterborough City Council,Children's & Education Services - Education,Non-School Funding,Supplies and Services,22/06/2011,391198,"13,930.88",REVENUE,New Ark Playgroup
Peterborough City Council,Children's & Education Services - Education,Non-School Funding,Supplies and Services,22/06/2011,391199,"5,168.86",REVENUE,Newborough Pre-School Playgroup
Peterborough City Council,Children's & Education Services - Education,Non-School Funding,Supplies and Services,22/06/2011,391200,"4,337.93",REVENUE,Noah's Ark Pre-School
Peterborough City Council,Children's & Education Services - Education,Non-School Funding,Supplies and Services,22/06/2011,391201,"11,768.36",REVENUE,Orton Longueville Playgroup
Peterborough City Council,Children's & Education Services - Education,Non-School Funding,Supplies and Services,22/06/2011,391202,"7,619.75",REVENUE,Orton Wistow Under Fives
Peterborough City Council,Children's & Education Services - Education,Non-School Funding,Supplies and Services,22/06/2011,391203,"7,580.25",REVENUE,Parnwell Family Project Playgroup
Peterborough City Council,Children's & Education Services - Education,Non-School Funding,Supplies and Services,22/06/2011,391205,"5,518.27",REVENUE,Paston & Gunthorpe Pre-School
Peterborough City Council,Children's & Education Services - Education,Non-School Funding,Supplies and Services,22/06/2011,391206,"10,339.81",REVENUE,Family Action
Peterborough City Council,Children's & Education Services - Education,Non-School Funding,Supplies and Services,22/06/2011,391207,"5,599.54",REVENUE,Family Action
Peterborough City Council,Children's & Education Services - Education,Non-School Funding,Supplies and Services,22/06/2011,391208,"4,427.34",REVENUE,Rainbow Pre-School
Peterborough City Council,Children's & Education Services - Education,Non-School Funding,Supplies and Services,22/06/2011,391209,"8,833.18",REVENUE,Rise & Shine Day Nursery
Peterborough City Council,Children's & Education Services - Education,Non-School Funding,Supplies and Services,22/06/2011,391210,"7,756.17",REVENUE,Salvation Army Playgroup
Peterborough City Council,Children's & Education Services - Education,Non-School Funding,Supplies and Services,22/06/2011,391212,"14,250.47",REVENUE,Shining Stars Pre-School Nursery
Peterborough City Council,Children's & Education Services - Education,Non-School Funding,Supplies and Services,22/06/2011,391213,"4,701.13",REVENUE,Shiny Stars Pre-School
Peterborough City Council,Children's & Education Services - Education,Non-School Funding,Supplies and Services,22/06/2011,391214,"4,779.22",REVENUE,Smiley Faces Day Nursery
Peterborough City Council,Children's & Education Services - Education,Non-School Funding,Supplies and Services,22/06/2011,391216,"9,642.60",REVENUE,South Bretton PS Middleton
Peterborough City Council,Children's & Education Services - Education,Non-School Funding,Supplies and Services,22/06/2011,391218,"6,854.64",REVENUE,Southfields Nursery
Peterborough City Council,Children's & Education Services - Education,Non-School Funding,Supplies and Services,22/06/2011,391219,"8,342.15",REVENUE,Family Action
Peterborough City Council,Children's & Education Services - Education,Non-School Funding,Supplies and Services,22/06/2011,391220,"5,136.30",REVENUE,St Johns C of E Pre-School
Peterborough City Council,Children's & Education Services - Education,Non-School Funding,Supplies and Services,22/06/2011,391221,"20,005.42",REVENUE,St Josephs Day Nursery
Peterborough City Council,Children's & Education Services - Education,Non-School Funding,Supplies and Services,22/06/2011,391222,"4,329.37",REVENUE,St Michaels Playgroup
Peterborough City Council,Children's & Education Services - Education,Non-School Funding,Supplies and Services,22/06/2011,391223,"8,700.05",REVENUE,St Thomas More Catholic Nursery
Peterborough City Council,Children's & Education Services - Education,Non-School Funding,Supplies and Services,22/06/2011,391224,"6,424.81",REVENUE,Stanground St Johns Pre-School
Peterborough City Council,Children's & Education Services - Education,Non-School Funding,Supplies and Services,22/06/2011,391225,"4,297.45",REVENUE,Step One Day Care
Peterborough City Council,Children's & Education Services - Education,Non-School Funding,Supplies and Services,22/06/2011,391226,"8,138.30",REVENUE,Stepping Stones Day Nursery
Peterborough City Council,Children's & Education Services - Education,Non-School Funding,Supplies and Services,22/06/2011,391227,"3,935.37",REVENUE,Stepping Stones Day Nursery
Peterborough City Council,Children's & Education Services - Education,Non-School Funding,Supplies and Services,22/06/2011,391228,"9,607.15",REVENUE,Sunflower Seed Pre-School
Peterborough City Council,Children's & Education Services - Education,Non-School Funding,Supplies and Services,22/06/2011,391229,"6,974.20",REVENUE,The Cedars Independent School & Day Nursery
Peterborough City Council,Children's & Education Services - Education,Non-School Funding,Supplies and Services,22/06/2011,391230,"8,667.55",REVENUE,Peterborough Regional College
Peterborough City Council,Children's & Education Services - Education,Non-School Funding,Supplies and Services,22/06/2011,391231,"12,886.40",REVENUE,The Day Nursery Peterborough Ltd
Peterborough City Council,Children's & Education Services - Education,Non-School Funding,Supplies and Services,22/06/2011,391232,"10,039.03",REVENUE,The Learning Tree Kindergarten
Peterborough City Council,Children's & Education Services - Education,Non-School Funding,Supplies and Services,22/06/2011,391233,"14,066.63",REVENUE,Manor House Nursery School
Peterborough City Council,Children's & Education Services - Education,Non-School Funding,Supplies and Services,22/06/2011,391234,"14,038.91",REVENUE,Peterborough High School Nursery
Peterborough City Council,Children's & Education Services - Education,Non-School Funding,Supplies and Services,22/06/2011,391235,"7,519.01",REVENUE,The Teddy Bears inn Day Nursery
Peterborough City Council,Children's & Education Services - Education,Non-School Funding,Supplies and Services,22/06/2011,391236,"4,452.56",REVENUE,The Village Playgroup
Peterborough City Council,Children's & Education Services - Education,Non-School Funding,Supplies and Services,22/06/2011,391237,"4,862.65",REVENUE,The Voyager Nursery
Peterborough City Council,Children's & Education Services - Education,Non-School Funding,Supplies and Services,22/06/2011,391238,"9,687.55",REVENUE,Young Generation Playgroup
Peterborough City Council,Children's & Education Services - Education,Non-School Funding,Supplies and Services,22/06/2011,391239,"2,895.65",REVENUE,Thorney Pre-School Playgroup
Peterborough City Council,Children's & Education Services - Education,Non-School Funding,Supplies and Services,22/06/2011,391240,"11,998.75",REVENUE,Miss J W Boon T/A Toddlers Inn Day Nursery
Peterborough City Council,Children's & Education Services - Education,Non-School Funding,Supplies and Services,22/06/2011,391241,843.19,REVENUE,Redacted Personal Data
Peterborough City Council,Children's & Education Services - Education,Non-School Funding,Supplies and Services,22/06/2011,391242,"1,225.31",REVENUE,Redacted Personal Data
Peterborough City Council,Children's & Education Services - Education,Non-School Funding,Supplies and Services,22/06/2011,391243,"9,976.21",REVENUE,West Town Playgroup
Peterborough City Council,Children's & Education Services - Education,Non-School Funding,Supplies and Services,22/06/2011,391245,"10,008.52",REVENUE,Woodston Playgroup
Peterborough City Council,Children's & Education Services - Education,Non-School Funding,Supplies and Services,22/06/2011,391246,"6,772.50",REVENUE,Westwood & Ravensthorpe Children's Centre
Peterborough City Council,Children's & Education Services - Education,Non-School Funding,Supplies and Services,22/06/2011,391247,"7,569.07",REVENUE,Alpha Big Sky Ltd
Peterborough City Council,Children's & Education Services - Education,Non-School Funding,Supplies and Services,22/06/2011,391248,"3,762.66",REVENUE,Alpha Big Sky Ltd
Peterborough City Council,Children's & Education Services - Education,Non-School Funding,Supplies and Services,22/06/2011,391249,"6,605.45",REVENUE,Anna-Ca-Soo Day Nursery
Peterborough City Council,Children's & Education Services - Education,Non-School Funding,Supplies and Services,22/06/2011,391250,"1,597.30",REVENUE,Barnack Pre-School
Peterborough City Council,Children's & Education Services - Education,Non-School Funding,Supplies and Services,22/06/2011,391251,"8,830.56",REVENUE,Beeches Pre-School
Peterborough City Council,Children's & Education Services - Education,Non-School Funding,Supplies and Services,22/06/2011,391252,"3,020.14",REVENUE,PSLA
Peterborough City Council,Children's & Education Services - Education,Non-School Funding,Supplies and Services,22/06/2011,391253,"4,663.29",REVENUE,Birchtree Pre-School
Peterborough City Council,Children's & Education Services - Education,Non-School Funding,Supplies and Services,22/06/2011,391254,"3,545.60",REVENUE,Braybrook Nursery
Peterborough City Council,Children's & Education Services - Education,Non-School Funding,Supplies and Services,22/06/2011,391255,"8,084.02",REVENUE,Bretton Community Pre-School
Peterborough City Council,Children's & Education Services - Education,Non-School Funding,Supplies and Services,22/06/2011,391256,"8,795.68",REVENUE,Bright Kids Nursery Ltd (Lynchwood)
Peterborough City Council,Children's & Education Services - Education,Non-School Funding,Supplies and Services,22/06/2011,391257,940.3,REVENUE,Bright Kids Nursery Ltd (Broadway)
Peterborough City Council,Children's & Education Services - Education,Non-School Funding,Supplies and Services,22/06/2011,391258,"6,551.47",REVENUE,Bright Star's day Nursery
Peterborough City Council,Children's & Education Services - Education,Non-School Funding,Supplies and Services,22/06/2011,391259,"3,077.88",REVENUE,Brookside Playgroup
Peterborough City Council,Children's & Education Services - Education,Non-School Funding,Supplies and Services,22/06/2011,391260,"5,007.44",REVENUE,Bundles of Fun Day Nursery
Peterborough City Council,Children's & Education Services - Education,Non-School Funding,Supplies and Services,22/06/2011,391261,"5,413.10",REVENUE,Bunny Tots Pre-School
Peterborough City Council,Children's & Education Services - Education,Non-School Funding,Supplies and Services,22/06/2011,391262,"2,544.60",REVENUE,Busy Bees Pre-School
Peterborough City Council,Children's & Education Services - Education,Non-School Funding,Supplies and Services,22/06/2011,391264,"6,403.66",REVENUE,Carousel Day Nursery
Peterborough City Council,Children's & Education Services - Education,Non-School Funding,Supplies and Services,22/06/2011,391265,"2,701.30",REVENUE,Castor & Ailsworth Playgroup
Peterborough City Council,Children's & Education Services - Education,Non-School Funding,Supplies and Services,22/06/2011,391266,654.37,REVENUE,Redacted Personal Data
Peterborough City Council,Children's & Education Services - Education,Non-School Funding,Supplies and Services,22/06/2011,391267,"4,323.60",REVENUE,Cygnets Pre-School
Peterborough City Council,Children's & Education Services - Education,Non-School Funding,Supplies and Services,22/06/2011,391268,"5,459.72",REVENUE,Best Start Childrens Nursery
Peterborough City Council,Children's & Education Services - Education,Non-School Funding,Supplies and Services,22/06/2011,391269,"3,796.30",REVENUE,Discovery Pre School
Peterborough City Council,Children's & Education Services - Education,Non-School Funding,Supplies and Services,22/06/2011,391270,"4,775.38",REVENUE,Dogsthorpe Community Pre-School
Peterborough City Council,Children's & Education Services - Education,Non-School Funding,Supplies and Services,22/06/2011,391271,"3,069.80",REVENUE,East Community Playgroup
Peterborough City Council,Children's & Education Services - Education,Non-School Funding,Supplies and Services,22/06/2011,391272,"4,478.50",REVENUE,Eye Pre-School
Peterborough City Council,Children's & Education Services - Education,Non-School Funding,Supplies and Services,22/06/2011,391273,"9,479.05",REVENUE,PSLA
Peterborough City Council,Children's & Education Services - Education,Non-School Funding,Supplies and Services,22/06/2011,391274,"2,790.98",REVENUE,First Steps Nursery (Maxey) Ltd
Peterborough City Council,Children's & Education Services - Education,Non-School Funding,Supplies and Services,22/06/2011,391275,"10,693.46",REVENUE,Flying Start Pre-School & Day Care Centre
Peterborough City Council,Children's & Education Services - Education,Non-School Funding,Supplies and Services,22/06/2011,391277,"1,741.60",REVENUE,Glinton Pre-School Playgroup
Peterborough City Council,Children's & Education Services - Education,Non-School Funding,Supplies and Services,22/06/2011,391278,644.21,REVENUE,Redacted Personal Data
Peterborough City Council,Children's & Education Services - Education,Non-School Funding,Supplies and Services,22/06/2011,391279,"2,659.75",REVENUE,Happy Days Playgroup
Peterborough City Council,Children's & Education Services - Education,Non-School Funding,Supplies and Services,22/06/2011,391282,"1,161.25",REVENUE,Helpston Playhouse & Under Fives
Peterborough City Council,Children's & Education Services - Education,Non-School Funding,Supplies and Services,22/06/2011,391283,"15,992.20",REVENUE,Herlington Pre-School
Peterborough City Council,Children's & Education Services - Education,Non-School Funding,Supplies and Services,22/06/2011,391284,"3,251.10",REVENUE,Husaini Pre-School
Peterborough City Council,Children's & Education Services - Education,Non-School Funding,Supplies and Services,22/06/2011,391285,"1,611.40",REVENUE,Jenny's Pre School Playgroup
Peterborough City Council,Children's & Education Services - Education,Non-School Funding,Supplies and Services,22/06/2011,391286,"9,483.49",REVENUE,Kiddi Caru Day Nursery
Peterborough City Council,Children's & Education Services - Education,Non-School Funding,Supplies and Services,22/06/2011,391287,"2,539.04",REVENUE,Kidsunlimited Group Ltd
Peterborough City Council,Children's & Education Services - Education,Non-School Funding,Supplies and Services,22/06/2011,391288,"15,458.70",REVENUE,Kindercare Pre-School Ltd
Peterborough City Council,Children's & Education Services - Education,Non-School Funding,Supplies and Services,22/06/2011,391289,"10,148.93",REVENUE,Leapfrog Day Nurseries
Peterborough City Council,Children's & Education Services - Education,Non-School Funding,Supplies and Services,22/06/2011,391290,"3,456.45",REVENUE,Leighton Primary Pre-School
Peterborough City Council,Children's & Education Services - Education,Non-School Funding,Supplies and Services,22/06/2011,391291,773.3,REVENUE,Little Angels
Peterborough City Council,Children's & Education Services - Education,Non-School Funding,Supplies and Services,22/06/2011,391292,"1,545.69",REVENUE,Fulbridge Nursery LIttle Gems
Peterborough City Council,Children's & Education Services - Education,Non-School Funding,Supplies and Services,22/06/2011,391293,"6,927.92",REVENUE,Little Pals Playgroup
Peterborough City Council,Children's & Education Services - Education,Non-School Funding,Supplies and Services,22/06/2011,391295,"16,402.40",REVENUE,Little Stars Day Nursery
Peterborough City Council,Children's & Education Services - Education,Non-School Funding,Supplies and Services,22/06/2011,391296,"6,187.47",REVENUE,Little Steps Day Nursery
Peterborough City Council,Children's & Education Services - Education,Non-School Funding,Supplies and Services,22/06/2011,391297,"9,557.35",REVENUE,Little Tigers Day Nursery
Peterborough City Council,Children's & Education Services - Education,Non-School Funding,Supplies and Services,22/06/2011,391298,"2,836.94",REVENUE,Longthorpe Playgroup
Peterborough City Council,Children's & Education Services - Education,Non-School Funding,Supplies and Services,22/06/2011,391299,"2,273.75",REVENUE,PSLA
Peterborough City Council,Children's & Education Services - Education,Non-School Funding,Supplies and Services,22/06/2011,391300,"3,740.03",REVENUE,Millfield Pre-School
Peterborough City Council,Children's & Education Services - Education,Non-School Funding,Supplies and Services,22/06/2011,391301,"9,722.74",REVENUE,New Ark Playgroup
Peterborough City Council,Children's & Education Services - Education,Non-School Funding,Supplies and Services,22/06/2011,391302,"2,949.09",REVENUE,Newborough Pre-School Playgroup
Peterborough City Council,Children's & Education Services - Education,Non-School Funding,Supplies and Services,22/06/2011,391303,"4,720.30",REVENUE,Noah's Ark Pre-School
Peterborough City Council,Children's & Education Services - Education,Non-School Funding,Supplies and Services,22/06/2011,391304,"7,378.58",REVENUE,Orton Longueville Playgroup
Peterborough City Council,Children's & Education Services - Education,Non-School Funding,Supplies and Services,22/06/2011,391305,"5,881.75",REVENUE,Orton Wistow Under Fives
Peterborough City Council,Children's & Education Services - Education,Non-School Funding,Supplies and Services,22/06/2011,391306,"6,978.70",REVENUE,Parnwell Family Project Playgroup
Peterborough City Council,Children's & Education Services - Education,Non-School Funding,Supplies and Services,22/06/2011,391307,"5,257.26",REVENUE,Paston & Gunthorpe Pre-School
Peterborough City Council,Children's & Education Services - Education,Non-School Funding,Supplies and Services,22/06/2011,391308,"4,296.00",REVENUE,Family Action
Peterborough City Council,Children's & Education Services - Education,Non-School Funding,Supplies and Services,22/06/2011,391309,"3,479.85",REVENUE,Family Action
Peterborough City Council,Children's & Education Services - Education,Non-School Funding,Supplies and Services,22/06/2011,391310,"4,623.21",REVENUE,Rainbow Pre-School
Peterborough City Council,Children's & Education Services - Education,Non-School Funding,Supplies and Services,22/06/2011,391311,"3,859.64",REVENUE,Salvation Army Playgroup
Peterborough City Council,Children's & Education Services - Education,Non-School Funding,Supplies and Services,22/06/2011,391313,"2,714.07",REVENUE,Shining Stars Pre-School Nursery
Peterborough City Council,Children's & Education Services - Education,Non-School Funding,Supplies and Services,22/06/2011,391314,"3,489.04",REVENUE,Shiny Stars Pre-School
Peterborough City Council,Children's & Education Services - Education,Non-School Funding,Supplies and Services,22/06/2011,391315,"3,048.81",REVENUE,Smiley Faces Day Nursery
Peterborough City Council,Children's & Education Services - Education,Non-School Funding,Supplies and Services,22/06/2011,391316,"7,105.57",REVENUE,South Bretton PS Middleton
Peterborough City Council,Children's & Education Services - Education,Non-School Funding,Supplies and Services,22/06/2011,391317,"2,135.94",REVENUE,Southfields Pre-School Playgroup
Peterborough City Council,Children's & Education Services - Education,Non-School Funding,Supplies and Services,22/06/2011,391318,"3,755.25",REVENUE,Southfields Nursery
Peterborough City Council,Children's & Education Services - Education,Non-School Funding,Supplies and Services,22/06/2011,391319,"6,627.24",REVENUE,Family Action
Peterborough City Council,Children's & Education Services - Education,Non-School Funding,Supplies and Services,22/06/2011,391320,"7,238.88",REVENUE,St Johns C of E Pre-School
Peterborough City Council,Children's & Education Services - Education,Non-School Funding,Supplies and Services,22/06/2011,391321,"14,605.12",REVENUE,St Josephs Day Nursery
Peterborough City Council,Children's & Education Services - Education,Non-School Funding,Supplies and Services,22/06/2011,391322,"8,386.75",REVENUE,St Michaels Playgroup
Peterborough City Council,Children's & Education Services - Education,Non-School Funding,Supplies and Services,22/06/2011,391323,"7,603.95",REVENUE,St Thomas More Catholic Nursery
Peterborough City Council,Children's & Education Services - Education,Non-School Funding,Supplies and Services,22/06/2011,391324,"4,050.52",REVENUE,Stanground St Johns Pre-School
Peterborough City Council,Children's & Education Services - Education,Non-School Funding,Supplies and Services,22/06/2011,391325,"1,630.25",REVENUE,Step One Day Care
Peterborough City Council,Children's & Education Services - Education,Non-School Funding,Supplies and Services,22/06/2011,391326,"6,392.55",REVENUE,Stepping Stones Day Nursery
Peterborough City Council,Children's & Education Services - Education,Non-School Funding,Supplies and Services,22/06/2011,391327,"1,945.53",REVENUE,Stepping Stones Day Nursery
Peterborough City Council,Children's & Education Services - Education,Non-School Funding,Supplies and Services,22/06/2011,391328,"4,804.85",REVENUE,Sunflower Seed Pre-School
Peterborough City Council,Children's & Education Services - Education,Non-School Funding,Supplies and Services,22/06/2011,391329,"2,653.35",REVENUE,The Cedars Independent School & Day Nursery
Peterborough City Council,Children's & Education Services - Education,Non-School Funding,Supplies and Services,22/06/2011,391330,"10,641.15",REVENUE,Peterborough Regional College
Peterborough City Council,Children's & Education Services - Education,Non-School Funding,Supplies and Services,22/06/2011,391331,"8,677.71",REVENUE,The Day Nursery Peterborough Ltd
Peterborough City Council,Children's & Education Services - Education,Non-School Funding,Supplies and Services,22/06/2011,391332,"6,463.98",REVENUE,The Learning Tree Kindergarten
Peterborough City Council,Children's & Education Services - Education,Non-School Funding,Supplies and Services,22/06/2011,391333,"4,641.07",REVENUE,Manor House Nursery School
Peterborough City Council,Children's & Education Services - Education,Non-School Funding,Supplies and Services,22/06/2011,391334,"1,619.75",REVENUE,The Peterborough School Ltd
Peterborough City Council,Children's & Education Services - Education,Non-School Funding,Supplies and Services,22/06/2011,391335,"10,098.24",REVENUE,Peterborough High School Nursery
Peterborough City Council,Children's & Education Services - Education,Non-School Funding,Supplies and Services,22/06/2011,391336,"1,214.64",REVENUE,The Teddy Bears inn Day Nursery
Peterborough City Council,Children's & Education Services - Education,Non-School Funding,Supplies and Services,22/06/2011,391337,"3,791.39",REVENUE,The Village Playgroup
Peterborough City Council,Children's & Education Services - Education,Non-School Funding,Supplies and Services,22/06/2011,391338,"2,273.10",REVENUE,The Voyager Nursery
Peterborough City Council,Children's & Education Services - Education,Non-School Funding,Supplies and Services,22/06/2011,391339,"4,541.75",REVENUE,Young Generation Playgroup
Peterborough City Council,Children's & Education Services - Education,Non-School Funding,Supplies and Services,22/06/2011,391340,"6,083.65",REVENUE,Thorney Pre-School Playgroup
Peterborough City Council,Children's & Education Services - Education,Non-School Funding,Supplies and Services,22/06/2011,391341,"8,847.03",REVENUE,Miss J W Boon T/A Toddlers Inn Day Nursery
Peterborough City Council,Children's & Education Services - Education,Non-School Funding,Supplies and Services,22/06/2011,391343,"4,543.91",REVENUE,West Town Playgroup
Peterborough City Council,Children's & Education Services - Education,Non-School Funding,Supplies and Services,22/06/2011,391344,"4,482.55",REVENUE,Woodston Playgroup
Peterborough City Council,Children's & Education Services - Education,Secondary,Employees,22/06/2011,391356,993.6,REVENUE,Mana Resourcing Ltd
Peterborough City Council,Children's & Education Services - Children's Social Care,Children Looked After,Supplies and Services - Transfer Payments,22/06/2011,391384,647.43,REVENUE,Redacted Personal Data
Peterborough City Council,Children's & Education Services - Children's Social Care,Children Looked After,Supplies and Services - Transfer Payments,22/06/2011,391388,647.43,REVENUE,Redacted Personal Data
Peterborough City Council,Children's & Education Services - Children's Social Care,Other Children's & Families Services,Supplies and Services - Transfer Payments,22/06/2011,391414,600,REVENUE,Redacted Personal Data
Peterborough City Council,Children's & Education Services - Children's Social Care,Other Children's & Families Services,Supplies and Services - Transfer Payments,22/06/2011,391415,613.6,REVENUE,Redacted Personal Data
Peterborough City Council,Children's & Education Services - Children's Social Care,Children Looked After,Supplies and Services - Transfer Payments,22/06/2011,391536,793.7,REVENUE,Redacted Personal Data
Peterborough City Council,Children's & Education Services - Children's Social Care,Children Looked After,Supplies and Services - Transfer Payments,22/06/2011,391537,560.98,REVENUE,Redacted Personal Data
Peterborough City Council,Children's & Education Services - Children's Social Care,Children Looked After,Supplies and Services - Transfer Payments,22/06/2011,391538,560.98,REVENUE,Redacted Personal Data
Peterborough City Council,Children's & Education Services - Children's Social Care,Children Looked After,Supplies and Services - Transfer Payments,22/06/2011,391539,529.9,REVENUE,Redacted Personal Data
Peterborough City Council,Children's & Education Services - Children's Social Care,Children Looked After,Supplies and Services - Transfer Payments,22/06/2011,391540,560.98,REVENUE,Redacted Personal Data
Peterborough City Council,Children's & Education Services - Children's Social Care,Children Looked After,Supplies and Services - Transfer Payments,22/06/2011,391541,529.9,REVENUE,Redacted Personal Data
Peterborough City Council,Children's & Education Services - Children's Social Care,Children Looked After,Supplies and Services - Transfer Payments,22/06/2011,391543,529.9,REVENUE,Redacted Personal Data
Peterborough City Council,Children's & Education Services - Children's Social Care,Children Looked After,Supplies and Services - Transfer Payments,22/06/2011,391544,529.9,REVENUE,Redacted Personal Data
Peterborough City Council,Children's & Education Services - Children's Social Care,Children Looked After,Supplies and Services - Transfer Payments,22/06/2011,391545,529.9,REVENUE,Redacted Personal Data
Peterborough City Council,Children's & Education Services - Children's Social Care,Children Looked After,Supplies and Services - Transfer Payments,22/06/2011,391546,529.9,REVENUE,Redacted Personal Data
